﻿Body Name,Supp ID,,Supplier Name,Service Area Category,Supp Grp,Period,Invoice Date,TT,Unique Invoice Reference,,Inv Amount,Account,Expenditure Description,Cost C,Cost Centre Name,Posted Amount
Nottinghamshire Fire and Rescue Service,103371,Nottinghamshire Healthcare NHS Trust,Nottinghamshire Healthcare NHS Trust,Management & Support Services,5,202304,07/07/2022,P6,9101935,"-4,222.84 ","4,222.84 ",1005,Admin Agency Staff,2068,Prevention,"4,222.84 "
Nottinghamshire Fire and Rescue Service,101980,Hays Specialist Recruitment Limited,Hays Specialist Recruitment Limited,Management & Support Services,1,202304,13/07/2022,P6,9101959,-782.62 ,782.62 ,1005,Admin Agency Staff,2058,HR Support,652.18 
Nottinghamshire Fire and Rescue Service,101001,Express Recruitment Ltd,Express Recruitment Ltd,Management & Support Services,1,202304,13/07/2022,P6,9102006,-706.74 ,706.74 ,1005,Admin Agency Staff,2087,Estates Department (Previously Premises),588.95 
Nottinghamshire Fire and Rescue Service,101980,Hays Specialist Recruitment Limited,Hays Specialist Recruitment Limited,Management & Support Services,1,202304,20/07/2022,P6,9102111,-881.47 ,881.47 ,1005,Admin Agency Staff,2058,HR Support,734.56 
Nottinghamshire Fire and Rescue Service,101980,Hays Specialist Recruitment Limited,Hays Specialist Recruitment Limited,Management & Support Services,1,202304,06/07/2022,P6,9102112,-626.09 ,626.09 ,1005,Admin Agency Staff,2058,HR Support,521.74 
Nottinghamshire Fire and Rescue Service,103371,Nottinghamshire Healthcare NHS Trust,Nottinghamshire Healthcare NHS Trust,Management & Support Services,5,202304,26/07/2022,P6,9102167,"-4,222.94 ","4,222.94 ",1005,Admin Agency Staff,2068,Prevention,"4,222.94 "
Nottinghamshire Fire and Rescue Service,104189,TNR Coaching Limited,TNR Coaching Limited,Management & Support Services,5,202304,31/05/2022,P6,9101871,-412.80 ,412.80 ,1801,Training,2059,Corporate Training,32.00 
Nottinghamshire Fire and Rescue Service,104189,TNR Coaching Limited,TNR Coaching Limited,Management & Support Services,5,202304,31/05/2022,P6,9101871,-412.80 ,412.80 ,1801,Training,2059,Corporate Training,221.00 
Nottinghamshire Fire and Rescue Service,104226,Tempest Management Training Ltd,Tempest Management Training Ltd,Management & Support Services,5,202304,27/04/2022,P6,9101912,-594.00 ,594.00 ,1801,Training,2054,Equalities Team,495.00 
Nottinghamshire Fire and Rescue Service,100178,Skills For Justice,Skills For Justice,Management & Support Services,1,202304,12/07/2022,P6,9101937,"-1,575.00 ","1,575.00 ",1801,Training,2059,Corporate Training,"1,575.00 "
Nottinghamshire Fire and Rescue Service,103378,R3 Safety & Rescue Limited,R3 Safety & Rescue Limited,Management & Support Services,5,202304,20/07/2022,P6,9102011,"-1,140.00 ","1,140.00 ",1801,Training,2059,Corporate Training,950.00 
Nottinghamshire Fire and Rescue Service,103982,British Deaf Association,British Deaf Association,Management & Support Services,5,202304,18/07/2022,P6,9102072,-319.80 ,319.80 ,1801,Training,2054,Equalities Team,269.80 
Nottinghamshire Fire and Rescue Service,103770,Phoenix Health And Safety,Phoenix Health And Safety,Management & Support Services,5,202304,15/07/2022,P6,9102096,-834.00 ,834.00 ,1801,Training,2059,Corporate Training,695.00 
Nottinghamshire Fire and Rescue Service,103377,Flat Fee Recruiter Limited,Flat Fee Recruiter Limited,Management & Support Services,5,202304,04/07/2022,P6,9101914,-298.80 ,298.80 ,1850,Recruitment Advertising,2049,Professional Support,249.00 
Nottinghamshire Fire and Rescue Service,103377,Flat Fee Recruiter Limited,Flat Fee Recruiter Limited,Management & Support Services,5,202304,05/07/2022,P6,9101930,-298.80 ,298.80 ,1850,Recruitment Advertising,2049,Professional Support,249.00 
Nottinghamshire Fire and Rescue Service,103377,Flat Fee Recruiter Limited,Flat Fee Recruiter Limited,Management & Support Services,5,202304,12/07/2022,P6,9102073,-298.80 ,298.80 ,1850,Recruitment Advertising,2049,Professional Support,249.00 
Nottinghamshire Fire and Rescue Service,103923,Bupa UK Insurance Services,Bupa UK Insurance Services,Management & Support Services,5,202304,29/06/2022,P6,9101857,"-3,267.20 ","3,267.20 ",1860,Employee Benefits Schemes,2049,Professional Support,"3,267.20 "
Nottinghamshire Fire and Rescue Service,102874,NCC Pension Fund,NCC Pension Fund,Management & Support Services,1,202304,07/07/2022,P6,9102010,"-5,817.23 ","5,817.23 ",1905,Gratuities,1089,Pension Costs met from Revenue,95.14 
Nottinghamshire Fire and Rescue Service,102874,NCC Pension Fund,NCC Pension Fund,Management & Support Services,1,202304,07/07/2022,P6,9102010,"-5,817.23 ","5,817.23 ",1921,Annual Pensions - Non Uniforms,1089,Pension Costs met from Revenue,"5,722.09 "
Nottinghamshire Fire and Rescue Service,104167,"Graham Asset Management, John Graham Holdings Limited","Graham Asset Management, John Graham Holdings Limited",Management & Support Services,5,202304,18/07/2022,P6,9102140,"-6,694.52 ","6,694.52 ",2000,Buildings Repairs and Maintenance - Reactive,2087,Estates Department (Previously Premises),"5,578.77 "
Nottinghamshire Fire and Rescue Service,103837,BWT UK Limited,BWT UK Limited,Operational Responses,5,202304,30/06/2022,P6,9101988,-592.19 ,592.19 ,2050,Building Maintenance - Planned,1001,Mansfield,35.00 
Nottinghamshire Fire and Rescue Service,103837,BWT UK Limited,BWT UK Limited,Operational Responses,5,202304,30/06/2022,P6,9101988,-592.19 ,592.19 ,2050,Building Maintenance - Planned,1002,Blidworth,17.50 
Nottinghamshire Fire and Rescue Service,103837,BWT UK Limited,BWT UK Limited,Operational Responses,5,202304,30/06/2022,P6,9101988,-592.19 ,592.19 ,2050,Building Maintenance - Planned,1003,London Road,29.75 
Nottinghamshire Fire and Rescue Service,103837,BWT UK Limited,BWT UK Limited,Operational Responses,5,202304,30/06/2022,P6,9101988,-592.19 ,592.19 ,2050,Building Maintenance - Planned,1005,Ashfield,17.50 
Nottinghamshire Fire and Rescue Service,103837,BWT UK Limited,BWT UK Limited,Operational Responses,5,202304,30/06/2022,P6,9101988,-592.19 ,592.19 ,2050,Building Maintenance - Planned,1006,Edwinstowe,26.25 
Nottinghamshire Fire and Rescue Service,103837,BWT UK Limited,BWT UK Limited,Operational Responses,5,202304,30/06/2022,P6,9101988,-592.19 ,592.19 ,2050,Building Maintenance - Planned,1007,Warsop,8.75 
Nottinghamshire Fire and Rescue Service,103837,BWT UK Limited,BWT UK Limited,Operational Responses,5,202304,30/06/2022,P6,9101988,-592.19 ,592.19 ,2050,Building Maintenance - Planned,1008,Worksop,17.50 
Nottinghamshire Fire and Rescue Service,103837,BWT UK Limited,BWT UK Limited,Operational Responses,5,202304,30/06/2022,P6,9101988,-592.19 ,592.19 ,2050,Building Maintenance - Planned,1010,Harworth,8.75 
Nottinghamshire Fire and Rescue Service,103837,BWT UK Limited,BWT UK Limited,Operational Responses,5,202304,30/06/2022,P6,9101988,-592.19 ,592.19 ,2050,Building Maintenance - Planned,1011,Misterton,8.75 
Nottinghamshire Fire and Rescue Service,103837,BWT UK Limited,BWT UK Limited,Operational Responses,5,202304,30/06/2022,P6,9101988,-592.19 ,592.19 ,2050,Building Maintenance - Planned,1012,Retford,26.25 
Nottinghamshire Fire and Rescue Service,103837,BWT UK Limited,BWT UK Limited,Operational Responses,5,202304,30/06/2022,P6,9101988,-592.19 ,592.19 ,2050,Building Maintenance - Planned,1013,Tuxford,8.75 
Nottinghamshire Fire and Rescue Service,103837,BWT UK Limited,BWT UK Limited,Operational Responses,5,202304,30/06/2022,P6,9101988,-592.19 ,592.19 ,2050,Building Maintenance - Planned,1014,Southwell,8.75 
Nottinghamshire Fire and Rescue Service,103837,BWT UK Limited,BWT UK Limited,Operational Responses,5,202304,30/06/2022,P6,9101988,-592.19 ,592.19 ,2050,Building Maintenance - Planned,1015,Collingham,8.75 
Nottinghamshire Fire and Rescue Service,103837,BWT UK Limited,BWT UK Limited,Operational Responses,5,202304,30/06/2022,P6,9101988,-592.19 ,592.19 ,2050,Building Maintenance - Planned,1016,Newark,17.50 
Nottinghamshire Fire and Rescue Service,103837,BWT UK Limited,BWT UK Limited,Operational Responses,5,202304,30/06/2022,P6,9101988,-592.19 ,592.19 ,2050,Building Maintenance - Planned,1017,Bingham,8.75 
Nottinghamshire Fire and Rescue Service,103837,BWT UK Limited,BWT UK Limited,Operational Responses,5,202304,30/06/2022,P6,9101988,-592.19 ,592.19 ,2050,Building Maintenance - Planned,1019,West Bridgford,17.50 
Nottinghamshire Fire and Rescue Service,103837,BWT UK Limited,BWT UK Limited,Operational Responses,5,202304,30/06/2022,P6,9101988,-592.19 ,592.19 ,2050,Building Maintenance - Planned,1020,Stockhill,17.50 
Nottinghamshire Fire and Rescue Service,103837,BWT UK Limited,BWT UK Limited,Operational Responses,5,202304,30/06/2022,P6,9101988,-592.19 ,592.19 ,2050,Building Maintenance - Planned,1023,Stapleford,8.75 
Nottinghamshire Fire and Rescue Service,103837,BWT UK Limited,BWT UK Limited,Operational Responses,5,202304,30/06/2022,P6,9101988,-592.19 ,592.19 ,2050,Building Maintenance - Planned,1024,Eastwood,8.75 
Nottinghamshire Fire and Rescue Service,103837,BWT UK Limited,BWT UK Limited,Operational Responses,5,202304,30/06/2022,P6,9101988,-592.19 ,592.19 ,2050,Building Maintenance - Planned,1025,Hucknall,8.75 
Nottinghamshire Fire and Rescue Service,103837,BWT UK Limited,BWT UK Limited,Operational Responses,5,202304,30/06/2022,P6,9101988,-592.19 ,592.19 ,2050,Building Maintenance - Planned,1026,Arnold,17.50 
Nottinghamshire Fire and Rescue Service,103837,BWT UK Limited,BWT UK Limited,Operational Responses,5,202304,30/06/2022,P6,9101988,-592.19 ,592.19 ,2050,Building Maintenance - Planned,1027,Carlton,17.50 
Nottinghamshire Fire and Rescue Service,103837,BWT UK Limited,BWT UK Limited,Operational Responses,5,202304,30/06/2022,P6,9101988,-592.19 ,592.19 ,2050,Building Maintenance - Planned,1028,East Leake,8.75 
Nottinghamshire Fire and Rescue Service,103837,BWT UK Limited,BWT UK Limited,Operational Responses,5,202304,30/06/2022,P6,9101988,-592.19 ,592.19 ,2050,Building Maintenance - Planned,1029,Highfields Station,35.00 
Nottinghamshire Fire and Rescue Service,103837,BWT UK Limited,BWT UK Limited,Management & Support Services,5,202304,30/06/2022,P6,9101988,-592.19 ,592.19 ,2050,Building Maintenance - Planned,1030,Service Development Centre,26.25 
Nottinghamshire Fire and Rescue Service,103837,BWT UK Limited,BWT UK Limited,Management & Support Services,5,202304,30/06/2022,P6,9101988,-592.19 ,592.19 ,2050,Building Maintenance - Planned,1035,Headquarters,78.75 
Nottinghamshire Fire and Rescue Service,102744,EDF Energy,EDF Energy,Operational Responses,1,202304,21/06/2022,P6,9101905,"-1,721.03 ","1,721.03 ",2100,Electricity,1008,Worksop,"1,434.19 "
Nottinghamshire Fire and Rescue Service,102744,EDF Energy,EDF Energy,Operational Responses,1,202304,22/06/2022,P6,9101907,"-1,896.95 ","1,896.95 ",2100,Electricity,1008,Worksop,"1,580.79 "
Nottinghamshire Fire and Rescue Service,104098,Total Gas & Power Limited,Total Gas & Power Limited,Operational Responses,5,202304,24/06/2022,P6,9101984,-295.70 ,295.70 ,2100,Electricity,1017,Bingham,281.62 
Nottinghamshire Fire and Rescue Service,104098,Total Gas & Power Limited,Total Gas & Power Limited,Operational Responses,5,202304,24/06/2022,P6,9101994,-315.98 ,315.98 ,2100,Electricity,1010,Harworth,315.98 
Nottinghamshire Fire and Rescue Service,104098,Total Gas & Power Limited,Total Gas & Power Limited,Operational Responses,5,202304,24/06/2022,P6,9101995,"-1,903.28 ","1,903.28 ",2100,Electricity,1005,Ashfield,"1,586.06 "
Nottinghamshire Fire and Rescue Service,104098,Total Gas & Power Limited,Total Gas & Power Limited,Operational Responses,5,202304,24/06/2022,P6,9101996,"-1,258.61 ","1,258.61 ",2100,Electricity,1006,Edwinstowe,"1,048.85 "
Nottinghamshire Fire and Rescue Service,104098,Total Gas & Power Limited,Total Gas & Power Limited,Operational Responses,5,202304,24/06/2022,P6,9101998,-356.82 ,356.82 ,2100,Electricity,1001,Mansfield,339.83 
Nottinghamshire Fire and Rescue Service,104098,Total Gas & Power Limited,Total Gas & Power Limited,Operational Responses,5,202304,24/06/2022,P6,9101999,"-1,406.37 ","1,406.37 ",2100,Electricity,1029,Highfields Station,"1,171.98 "
Nottinghamshire Fire and Rescue Service,104098,Total Gas & Power Limited,Total Gas & Power Limited,Operational Responses,5,202304,24/06/2022,P6,9102000,"-2,437.29 ","2,437.29 ",2100,Electricity,1001,Mansfield,"2,031.07 "
Nottinghamshire Fire and Rescue Service,104098,Total Gas & Power Limited,Total Gas & Power Limited,Operational Responses,5,202304,24/06/2022,P6,9102001,-496.55 ,496.55 ,2100,Electricity,1016,Newark,413.79 
Nottinghamshire Fire and Rescue Service,104098,Total Gas & Power Limited,Total Gas & Power Limited,Prevention & Education,5,202304,24/06/2022,P6,9102002,-595.08 ,595.08 ,2100,Electricity,1036,Clifton Community Safety Centre,495.90 
Nottinghamshire Fire and Rescue Service,104098,Total Gas & Power Limited,Total Gas & Power Limited,Operational Responses,5,202304,24/06/2022,P6,9102003,"-1,165.53 ","1,165.53 ",2100,Electricity,1026,Arnold,971.28 
Nottinghamshire Fire and Rescue Service,104098,Total Gas & Power Limited,Total Gas & Power Limited,Operational Responses,5,202304,24/06/2022,P6,9102004,-836.06 ,836.06 ,2100,Electricity,1027,Carlton,696.71 
Nottinghamshire Fire and Rescue Service,104098,Total Gas & Power Limited,Total Gas & Power Limited,Operational Responses,5,202304,24/06/2022,P6,9102005,-832.72 ,832.72 ,2100,Electricity,1012,Retford,693.93 
Nottinghamshire Fire and Rescue Service,102744,EDF Energy,EDF Energy,Operational Responses,1,202304,11/07/2022,P6,9102067,"-9,964.65 ","9,964.65 ",2100,Electricity,1019,West Bridgford,"8,303.87 "
Nottinghamshire Fire and Rescue Service,102744,EDF Energy,EDF Energy,Operational Responses,1,202304,06/07/2022,P6,9102070,"-24,007.53 ","24,007.53 ",2100,Electricity,1003,London Road,"2,197.52 "
Nottinghamshire Fire and Rescue Service,102744,EDF Energy,EDF Energy,Operational Responses,1,202304,06/07/2022,P6,9102070,"-24,007.53 ","24,007.53 ",2100,Electricity,1012,Retford,863.32 
Nottinghamshire Fire and Rescue Service,102744,EDF Energy,EDF Energy,Operational Responses,1,202304,06/07/2022,P6,9102070,"-24,007.53 ","24,007.53 ",2100,Electricity,1012,Retford,928.94 
Nottinghamshire Fire and Rescue Service,102744,EDF Energy,EDF Energy,Operational Responses,1,202304,06/07/2022,P6,9102070,"-24,007.53 ","24,007.53 ",2100,Electricity,1016,Newark,927.20 
Nottinghamshire Fire and Rescue Service,102744,EDF Energy,EDF Energy,Operational Responses,1,202304,06/07/2022,P6,9102070,"-24,007.53 ","24,007.53 ",2100,Electricity,1016,Newark,"1,030.62 "
Nottinghamshire Fire and Rescue Service,102744,EDF Energy,EDF Energy,Operational Responses,1,202304,06/07/2022,P6,9102070,"-24,007.53 ","24,007.53 ",2100,Electricity,1027,Carlton,"2,612.42 "
Nottinghamshire Fire and Rescue Service,102744,EDF Energy,EDF Energy,Operational Responses,1,202304,06/07/2022,P6,9102070,"-24,007.53 ","24,007.53 ",2100,Electricity,1029,Highfields Station,"-4,379.12 "
Nottinghamshire Fire and Rescue Service,102744,EDF Energy,EDF Energy,Operational Responses,1,202304,06/07/2022,P6,9102070,"-24,007.53 ","24,007.53 ",2100,Electricity,1029,Highfields Station,"4,366.38 "
Nottinghamshire Fire and Rescue Service,102744,EDF Energy,EDF Energy,Operational Responses,1,202304,06/07/2022,P6,9102070,"-24,007.53 ","24,007.53 ",2100,Electricity,1029,Highfields Station,"4,412.12 "
Nottinghamshire Fire and Rescue Service,102744,EDF Energy,EDF Energy,Management & Support Services,1,202304,06/07/2022,P6,9102070,"-24,007.53 ","24,007.53 ",2100,Electricity,1030,Service Development Centre,5.92 
Nottinghamshire Fire and Rescue Service,102744,EDF Energy,EDF Energy,Management & Support Services,1,202304,06/07/2022,P6,9102070,"-24,007.53 ","24,007.53 ",2100,Electricity,1030,Service Development Centre,"1,826.90 "
Nottinghamshire Fire and Rescue Service,102744,EDF Energy,EDF Energy,Management & Support Services,1,202304,06/07/2022,P6,9102070,"-24,007.53 ","24,007.53 ",2100,Electricity,1030,Service Development Centre,"2,063.13 "
Nottinghamshire Fire and Rescue Service,102744,EDF Energy,EDF Energy,Management & Support Services,1,202304,06/07/2022,P6,9102070,"-24,007.53 ","24,007.53 ",2100,Electricity,1035,Headquarters,"3,151.92 "
Nottinghamshire Fire and Rescue Service,102744,EDF Energy,EDF Energy,Operational Responses,1,202304,01/07/2022,P6,9102086,-261.42 ,261.42 ,2100,Electricity,1002,Blidworth,1.98 
Nottinghamshire Fire and Rescue Service,102744,EDF Energy,EDF Energy,Operational Responses,1,202304,01/07/2022,P6,9102086,-261.42 ,261.42 ,2100,Electricity,1002,Blidworth,247.09 
Nottinghamshire Fire and Rescue Service,102744,EDF Energy,EDF Energy,Operational Responses,1,202304,01/06/2022,P6,9102088,-270.66 ,270.66 ,2100,Electricity,1002,Blidworth,2.19 
Nottinghamshire Fire and Rescue Service,102744,EDF Energy,EDF Energy,Operational Responses,1,202304,01/06/2022,P6,9102088,-270.66 ,270.66 ,2100,Electricity,1002,Blidworth,255.69 
Nottinghamshire Fire and Rescue Service,102744,EDF Energy,EDF Energy,Operational Responses,1,202304,08/07/2022,P6,9102089,"-2,443.34 ","2,443.34 ",2100,Electricity,1001,Mansfield,4.35 
Nottinghamshire Fire and Rescue Service,102744,EDF Energy,EDF Energy,Operational Responses,1,202304,08/07/2022,P6,9102089,"-2,443.34 ","2,443.34 ",2100,Electricity,1001,Mansfield,"2,032.49 "
Nottinghamshire Fire and Rescue Service,102744,EDF Energy,EDF Energy,Operational Responses,1,202304,08/07/2022,P6,9102090,-397.00 ,397.00 ,2100,Electricity,1007,Warsop,0.15 
Nottinghamshire Fire and Rescue Service,102744,EDF Energy,EDF Energy,Operational Responses,1,202304,08/07/2022,P6,9102090,-397.00 ,397.00 ,2100,Electricity,1007,Warsop,330.71 
Nottinghamshire Fire and Rescue Service,102744,EDF Energy,EDF Energy,Operational Responses,1,202304,11/07/2022,P6,9102091,"-1,540.71 ","1,540.71 ",2100,Electricity,1011,Misterton,5.77 
Nottinghamshire Fire and Rescue Service,102744,EDF Energy,EDF Energy,Operational Responses,1,202304,11/07/2022,P6,9102091,"-1,540.71 ","1,540.71 ",2100,Electricity,1011,Misterton,"1,279.11 "
Nottinghamshire Fire and Rescue Service,102744,EDF Energy,EDF Energy,Operational Responses,1,202304,21/06/2022,P6,9101906,"2,016.37 ","-2,016.37 ",2100,Electricity,1008,Worksop,"-1,680.31 "
Nottinghamshire Fire and Rescue Service,102655,Nottingham City Council (City Treasurer),Nottingham City Council (City Treasurer),Operational Responses,1,202304,30/06/2022,P6,9101913,-795.14 ,795.14 ,2101,Gas,1003,London Road,662.62 
Nottinghamshire Fire and Rescue Service,104098,Total Gas & Power Limited,Total Gas & Power Limited,Management & Support Services,5,202304,24/06/2022,P6,9101980,-924.70 ,924.70 ,2101,Gas,1030,Service Development Centre,770.58 
Nottinghamshire Fire and Rescue Service,104098,Total Gas & Power Limited,Total Gas & Power Limited,Operational Responses,5,202304,24/06/2022,P6,9101983,"-1,078.56 ","1,078.56 ",2101,Gas,1020,Stockhill,898.80 
Nottinghamshire Fire and Rescue Service,104098,Total Gas & Power Limited,Total Gas & Power Limited,Operational Responses,5,202304,24/06/2022,P6,9101986,"-1,195.76 ","1,195.76 ",2101,Gas,1019,West Bridgford,996.47 
Nottinghamshire Fire and Rescue Service,104098,Total Gas & Power Limited,Total Gas & Power Limited,Operational Responses,5,202304,24/06/2022,P6,9101989,"-1,778.45 ","1,778.45 ",2101,Gas,1008,Worksop,"1,482.04 "
Nottinghamshire Fire and Rescue Service,104098,Total Gas & Power Limited,Total Gas & Power Limited,Operational Responses,5,202304,24/06/2022,P6,9101993,-652.63 ,652.63 ,2101,Gas,1024,Eastwood,543.85 
Nottinghamshire Fire and Rescue Service,104098,Total Gas & Power Limited,Total Gas & Power Limited,Operational Responses,5,202304,13/07/2022,P6,9102035,-965.57 ,965.57 ,2101,Gas,1019,West Bridgford,804.64 
Nottinghamshire Fire and Rescue Service,104098,Total Gas & Power Limited,Total Gas & Power Limited,Operational Responses,5,202304,13/07/2022,P6,9102036,"-1,435.58 ","1,435.58 ",2101,Gas,1008,Worksop,"1,196.31 "
Nottinghamshire Fire and Rescue Service,104098,Total Gas & Power Limited,Total Gas & Power Limited,Operational Responses,5,202304,13/07/2022,P6,9102037,-380.18 ,380.18 ,2101,Gas,1024,Eastwood,362.08 
Nottinghamshire Fire and Rescue Service,104098,Total Gas & Power Limited,Total Gas & Power Limited,Operational Responses,5,202304,13/07/2022,P6,9102038,-677.87 ,677.87 ,2101,Gas,1012,Retford,564.89 
Nottinghamshire Fire and Rescue Service,104098,Total Gas & Power Limited,Total Gas & Power Limited,Operational Responses,5,202304,13/07/2022,P6,9102039,-592.78 ,592.78 ,2101,Gas,1027,Carlton,493.98 
Nottinghamshire Fire and Rescue Service,104098,Total Gas & Power Limited,Total Gas & Power Limited,Operational Responses,5,202304,13/07/2022,P6,9102040,-816.96 ,816.96 ,2101,Gas,1026,Arnold,680.80 
Nottinghamshire Fire and Rescue Service,104098,Total Gas & Power Limited,Total Gas & Power Limited,Prevention & Education,5,202304,13/07/2022,P6,9102041,-461.76 ,461.76 ,2101,Gas,1036,Clifton Community Safety Centre,384.80 
Nottinghamshire Fire and Rescue Service,104098,Total Gas & Power Limited,Total Gas & Power Limited,Operational Responses,5,202304,13/07/2022,P6,9102044,-649.88 ,649.88 ,2101,Gas,1016,Newark,541.57 
Nottinghamshire Fire and Rescue Service,104098,Total Gas & Power Limited,Total Gas & Power Limited,Operational Responses,5,202304,13/07/2022,P6,9102050,"-1,870.22 ","1,870.22 ",2101,Gas,1001,Mansfield,"1,558.52 "
Nottinghamshire Fire and Rescue Service,104098,Total Gas & Power Limited,Total Gas & Power Limited,Operational Responses,5,202304,13/07/2022,P6,9102053,-291.20 ,291.20 ,2101,Gas,1016,Newark,277.33 
Nottinghamshire Fire and Rescue Service,104098,Total Gas & Power Limited,Total Gas & Power Limited,Operational Responses,5,202304,13/07/2022,P6,9102055,-709.63 ,709.63 ,2101,Gas,1029,Highfields Station,675.83 
Nottinghamshire Fire and Rescue Service,104098,Total Gas & Power Limited,Total Gas & Power Limited,Operational Responses,5,202304,13/07/2022,P6,9102057,-257.24 ,257.24 ,2101,Gas,1001,Mansfield,244.99 
Nottinghamshire Fire and Rescue Service,104098,Total Gas & Power Limited,Total Gas & Power Limited,Operational Responses,5,202304,13/07/2022,P6,9102062,"-1,020.38 ","1,020.38 ",2101,Gas,1006,Edwinstowe,850.32 
Nottinghamshire Fire and Rescue Service,104098,Total Gas & Power Limited,Total Gas & Power Limited,Operational Responses,5,202304,13/07/2022,P6,9102063,"-1,581.03 ","1,581.03 ",2101,Gas,1005,Ashfield,"1,317.53 "
Nottinghamshire Fire and Rescue Service,104098,Total Gas & Power Limited,Total Gas & Power Limited,Operational Responses,5,202304,13/07/2022,P6,9102064,-292.80 ,292.80 ,2101,Gas,1010,Harworth,278.86 
Nottinghamshire Fire and Rescue Service,104098,Total Gas & Power Limited,Total Gas & Power Limited,Operational Responses,5,202304,13/07/2022,P6,9102065,-549.91 ,549.91 ,2101,Gas,1020,Stockhill,523.72 
Nottinghamshire Fire and Rescue Service,103280,Shred IT Limited,Shred IT Limited,Operational Responses,5,202304,30/06/2022,P6,9101904,"-1,023.43 ","1,023.43 ",2106,Refuse / Trade Waste Collection,1001,Mansfield,40.00 
Nottinghamshire Fire and Rescue Service,103280,Shred IT Limited,Shred IT Limited,Operational Responses,5,202304,30/06/2022,P6,9101904,"-1,023.43 ","1,023.43 ",2106,Refuse / Trade Waste Collection,1003,London Road,40.00 
Nottinghamshire Fire and Rescue Service,103280,Shred IT Limited,Shred IT Limited,Operational Responses,5,202304,30/06/2022,P6,9101904,"-1,023.43 ","1,023.43 ",2106,Refuse / Trade Waste Collection,1006,Edwinstowe,40.00 
Nottinghamshire Fire and Rescue Service,103280,Shred IT Limited,Shred IT Limited,Operational Responses,5,202304,30/06/2022,P6,9101904,"-1,023.43 ","1,023.43 ",2106,Refuse / Trade Waste Collection,1008,Worksop,40.00 
Nottinghamshire Fire and Rescue Service,103280,Shred IT Limited,Shred IT Limited,Operational Responses,5,202304,30/06/2022,P6,9101904,"-1,023.43 ","1,023.43 ",2106,Refuse / Trade Waste Collection,1012,Retford,40.00 
Nottinghamshire Fire and Rescue Service,103280,Shred IT Limited,Shred IT Limited,Operational Responses,5,202304,30/06/2022,P6,9101904,"-1,023.43 ","1,023.43 ",2106,Refuse / Trade Waste Collection,1016,Newark,40.00 
Nottinghamshire Fire and Rescue Service,103280,Shred IT Limited,Shred IT Limited,Operational Responses,5,202304,30/06/2022,P6,9101904,"-1,023.43 ","1,023.43 ",2106,Refuse / Trade Waste Collection,1029,Highfields Station,40.00 
Nottinghamshire Fire and Rescue Service,103280,Shred IT Limited,Shred IT Limited,Management & Support Services,5,202304,30/06/2022,P6,9101904,"-1,023.43 ","1,023.43 ",2106,Refuse / Trade Waste Collection,1030,Service Development Centre,40.00 
Nottinghamshire Fire and Rescue Service,103280,Shred IT Limited,Shred IT Limited,Management & Support Services,5,202304,30/06/2022,P6,9101904,"-1,023.43 ","1,023.43 ",2106,Refuse / Trade Waste Collection,2086,Procurement,532.86 
Nottinghamshire Fire and Rescue Service,103847,Veolia ES UK Limited,Veolia ES UK Limited,Management & Support Services,5,202304,31/05/2022,P6,9101938,"-1,759.72 ","1,759.72 ",2106,Refuse / Trade Waste Collection,2086,Procurement,"1,466.43 "
Nottinghamshire Fire and Rescue Service,103847,Veolia ES UK Limited,Veolia ES UK Limited,Management & Support Services,5,202304,30/06/2022,P6,9102008,"-1,743.20 ","1,743.20 ",2106,Refuse / Trade Waste Collection,2086,Procurement,"1,452.67 "
Nottinghamshire Fire and Rescue Service,100557,NCC Sundry Debtors,NCC Sundry Debtors,Operational Responses,4,202304,01/07/2022,P6,9101945,"-1,805.45 ","1,805.45 ",2201,Grounds Maintenance,1001,Mansfield,39.60 
Nottinghamshire Fire and Rescue Service,100557,NCC Sundry Debtors,NCC Sundry Debtors,Operational Responses,4,202304,01/07/2022,P6,9101945,"-1,805.45 ","1,805.45 ",2201,Grounds Maintenance,1002,Blidworth,67.84 
Nottinghamshire Fire and Rescue Service,100557,NCC Sundry Debtors,NCC Sundry Debtors,Operational Responses,4,202304,01/07/2022,P6,9101945,"-1,805.45 ","1,805.45 ",2201,Grounds Maintenance,1003,London Road,36.40 
Nottinghamshire Fire and Rescue Service,100557,NCC Sundry Debtors,NCC Sundry Debtors,Operational Responses,4,202304,01/07/2022,P6,9101945,"-1,805.45 ","1,805.45 ",2201,Grounds Maintenance,1005,Ashfield,182.04 
Nottinghamshire Fire and Rescue Service,100557,NCC Sundry Debtors,NCC Sundry Debtors,Operational Responses,4,202304,01/07/2022,P6,9101945,"-1,805.45 ","1,805.45 ",2201,Grounds Maintenance,1006,Edwinstowe,38.51 
Nottinghamshire Fire and Rescue Service,100557,NCC Sundry Debtors,NCC Sundry Debtors,Operational Responses,4,202304,01/07/2022,P6,9101945,"-1,805.45 ","1,805.45 ",2201,Grounds Maintenance,1007,Warsop,3.32 
Nottinghamshire Fire and Rescue Service,100557,NCC Sundry Debtors,NCC Sundry Debtors,Operational Responses,4,202304,01/07/2022,P6,9101945,"-1,805.45 ","1,805.45 ",2201,Grounds Maintenance,1008,Worksop,35.95 
Nottinghamshire Fire and Rescue Service,100557,NCC Sundry Debtors,NCC Sundry Debtors,Operational Responses,4,202304,01/07/2022,P6,9101945,"-1,805.45 ","1,805.45 ",2201,Grounds Maintenance,1010,Harworth,42.26 
Nottinghamshire Fire and Rescue Service,100557,NCC Sundry Debtors,NCC Sundry Debtors,Operational Responses,4,202304,01/07/2022,P6,9101945,"-1,805.45 ","1,805.45 ",2201,Grounds Maintenance,1011,Misterton,39.23 
Nottinghamshire Fire and Rescue Service,100557,NCC Sundry Debtors,NCC Sundry Debtors,Operational Responses,4,202304,01/07/2022,P6,9101945,"-1,805.45 ","1,805.45 ",2201,Grounds Maintenance,1012,Retford,26.31 
Nottinghamshire Fire and Rescue Service,100557,NCC Sundry Debtors,NCC Sundry Debtors,Operational Responses,4,202304,01/07/2022,P6,9101945,"-1,805.45 ","1,805.45 ",2201,Grounds Maintenance,1013,Tuxford,27.35 
Nottinghamshire Fire and Rescue Service,100557,NCC Sundry Debtors,NCC Sundry Debtors,Operational Responses,4,202304,01/07/2022,P6,9101945,"-1,805.45 ","1,805.45 ",2201,Grounds Maintenance,1014,Southwell,26.00 
Nottinghamshire Fire and Rescue Service,100557,NCC Sundry Debtors,NCC Sundry Debtors,Operational Responses,4,202304,01/07/2022,P6,9101945,"-1,805.45 ","1,805.45 ",2201,Grounds Maintenance,1015,Collingham,15.21 
Nottinghamshire Fire and Rescue Service,100557,NCC Sundry Debtors,NCC Sundry Debtors,Operational Responses,4,202304,01/07/2022,P6,9101945,"-1,805.45 ","1,805.45 ",2201,Grounds Maintenance,1016,Newark,37.78 
Nottinghamshire Fire and Rescue Service,100557,NCC Sundry Debtors,NCC Sundry Debtors,Operational Responses,4,202304,01/07/2022,P6,9101945,"-1,805.45 ","1,805.45 ",2201,Grounds Maintenance,1017,Bingham,64.08 
Nottinghamshire Fire and Rescue Service,100557,NCC Sundry Debtors,NCC Sundry Debtors,Operational Responses,4,202304,01/07/2022,P6,9101945,"-1,805.45 ","1,805.45 ",2201,Grounds Maintenance,1019,West Bridgford,108.64 
Nottinghamshire Fire and Rescue Service,100557,NCC Sundry Debtors,NCC Sundry Debtors,Operational Responses,4,202304,01/07/2022,P6,9101945,"-1,805.45 ","1,805.45 ",2201,Grounds Maintenance,1020,Stockhill,216.10 
Nottinghamshire Fire and Rescue Service,100557,NCC Sundry Debtors,NCC Sundry Debtors,Operational Responses,4,202304,01/07/2022,P6,9101945,"-1,805.45 ","1,805.45 ",2201,Grounds Maintenance,1023,Stapleford,80.50 
Nottinghamshire Fire and Rescue Service,100557,NCC Sundry Debtors,NCC Sundry Debtors,Operational Responses,4,202304,01/07/2022,P6,9101945,"-1,805.45 ","1,805.45 ",2201,Grounds Maintenance,1024,Eastwood,27.09 
Nottinghamshire Fire and Rescue Service,100557,NCC Sundry Debtors,NCC Sundry Debtors,Operational Responses,4,202304,01/07/2022,P6,9101945,"-1,805.45 ","1,805.45 ",2201,Grounds Maintenance,1026,Arnold,11.31 
Nottinghamshire Fire and Rescue Service,100557,NCC Sundry Debtors,NCC Sundry Debtors,Operational Responses,4,202304,01/07/2022,P6,9101945,"-1,805.45 ","1,805.45 ",2201,Grounds Maintenance,1027,Carlton,10.21 
Nottinghamshire Fire and Rescue Service,100557,NCC Sundry Debtors,NCC Sundry Debtors,Operational Responses,4,202304,01/07/2022,P6,9101945,"-1,805.45 ","1,805.45 ",2201,Grounds Maintenance,1028,East Leake,132.86 
Nottinghamshire Fire and Rescue Service,100557,NCC Sundry Debtors,NCC Sundry Debtors,Operational Responses,4,202304,01/07/2022,P6,9101945,"-1,805.45 ","1,805.45 ",2201,Grounds Maintenance,1029,Highfields Station,79.20 
Nottinghamshire Fire and Rescue Service,100557,NCC Sundry Debtors,NCC Sundry Debtors,Management & Support Services,4,202304,01/07/2022,P6,9101945,"-1,805.45 ","1,805.45 ",2201,Grounds Maintenance,1030,Service Development Centre,156.75 
Nottinghamshire Fire and Rescue Service,100557,NCC Sundry Debtors,NCC Sundry Debtors,Operational Responses,4,202304,01/07/2022,P6,9101916,"-33,678.30 ","33,678.30 ",2204,Contract Cleaning,1001,Mansfield,"2,336.96 "
Nottinghamshire Fire and Rescue Service,100557,NCC Sundry Debtors,NCC Sundry Debtors,Operational Responses,4,202304,01/07/2022,P6,9101916,"-33,678.30 ","33,678.30 ",2204,Contract Cleaning,1002,Blidworth,132.59 
Nottinghamshire Fire and Rescue Service,100557,NCC Sundry Debtors,NCC Sundry Debtors,Operational Responses,4,202304,01/07/2022,P6,9101916,"-33,678.30 ","33,678.30 ",2204,Contract Cleaning,1003,London Road,"2,579.47 "
Nottinghamshire Fire and Rescue Service,100557,NCC Sundry Debtors,NCC Sundry Debtors,Operational Responses,4,202304,01/07/2022,P6,9101916,"-33,678.30 ","33,678.30 ",2204,Contract Cleaning,1005,Ashfield,"1,309.26 "
Nottinghamshire Fire and Rescue Service,100557,NCC Sundry Debtors,NCC Sundry Debtors,Operational Responses,4,202304,01/07/2022,P6,9101916,"-33,678.30 ","33,678.30 ",2204,Contract Cleaning,1006,Edwinstowe,"1,010.88 "
Nottinghamshire Fire and Rescue Service,100557,NCC Sundry Debtors,NCC Sundry Debtors,Operational Responses,4,202304,01/07/2022,P6,9101916,"-33,678.30 ","33,678.30 ",2204,Contract Cleaning,1007,Warsop,165.59 
Nottinghamshire Fire and Rescue Service,100557,NCC Sundry Debtors,NCC Sundry Debtors,Operational Responses,4,202304,01/07/2022,P6,9101916,"-33,678.30 ","33,678.30 ",2204,Contract Cleaning,1008,Worksop,"1,645.61 "
Nottinghamshire Fire and Rescue Service,100557,NCC Sundry Debtors,NCC Sundry Debtors,Operational Responses,4,202304,01/07/2022,P6,9101916,"-33,678.30 ","33,678.30 ",2204,Contract Cleaning,1010,Harworth,331.27 
Nottinghamshire Fire and Rescue Service,100557,NCC Sundry Debtors,NCC Sundry Debtors,Operational Responses,4,202304,01/07/2022,P6,9101916,"-33,678.30 ","33,678.30 ",2204,Contract Cleaning,1011,Misterton,265.08 
Nottinghamshire Fire and Rescue Service,100557,NCC Sundry Debtors,NCC Sundry Debtors,Operational Responses,4,202304,01/07/2022,P6,9101916,"-33,678.30 ","33,678.30 ",2204,Contract Cleaning,1012,Retford,"1,673.76 "
Nottinghamshire Fire and Rescue Service,100557,NCC Sundry Debtors,NCC Sundry Debtors,Operational Responses,4,202304,01/07/2022,P6,9101916,"-33,678.30 ","33,678.30 ",2204,Contract Cleaning,1013,Tuxford,198.69 
Nottinghamshire Fire and Rescue Service,100557,NCC Sundry Debtors,NCC Sundry Debtors,Operational Responses,4,202304,01/07/2022,P6,9101916,"-33,678.30 ","33,678.30 ",2204,Contract Cleaning,1014,Southwell,298.18 
Nottinghamshire Fire and Rescue Service,100557,NCC Sundry Debtors,NCC Sundry Debtors,Operational Responses,4,202304,01/07/2022,P6,9101916,"-33,678.30 ","33,678.30 ",2204,Contract Cleaning,1015,Collingham,298.18 
Nottinghamshire Fire and Rescue Service,100557,NCC Sundry Debtors,NCC Sundry Debtors,Operational Responses,4,202304,01/07/2022,P6,9101916,"-33,678.30 ","33,678.30 ",2204,Contract Cleaning,1016,Newark,"1,309.26 "
Nottinghamshire Fire and Rescue Service,100557,NCC Sundry Debtors,NCC Sundry Debtors,Operational Responses,4,202304,01/07/2022,P6,9101916,"-33,678.30 ","33,678.30 ",2204,Contract Cleaning,1017,Bingham,198.88 
Nottinghamshire Fire and Rescue Service,100557,NCC Sundry Debtors,NCC Sundry Debtors,Operational Responses,4,202304,01/07/2022,P6,9101916,"-33,678.30 ","33,678.30 ",2204,Contract Cleaning,1019,West Bridgford,"2,005.00 "
Nottinghamshire Fire and Rescue Service,100557,NCC Sundry Debtors,NCC Sundry Debtors,Operational Responses,4,202304,01/07/2022,P6,9101916,"-33,678.30 ","33,678.30 ",2204,Contract Cleaning,1020,Stockhill,"1,640.62 "
Nottinghamshire Fire and Rescue Service,100557,NCC Sundry Debtors,NCC Sundry Debtors,Operational Responses,4,202304,01/07/2022,P6,9101916,"-33,678.30 ","33,678.30 ",2204,Contract Cleaning,1023,Stapleford,496.91 
Nottinghamshire Fire and Rescue Service,100557,NCC Sundry Debtors,NCC Sundry Debtors,Operational Responses,4,202304,01/07/2022,P6,9101916,"-33,678.30 ","33,678.30 ",2204,Contract Cleaning,1024,Eastwood,331.22 
Nottinghamshire Fire and Rescue Service,100557,NCC Sundry Debtors,NCC Sundry Debtors,Operational Responses,4,202304,01/07/2022,P6,9101916,"-33,678.30 ","33,678.30 ",2204,Contract Cleaning,1026,Arnold,"1,226.43 "
Nottinghamshire Fire and Rescue Service,100557,NCC Sundry Debtors,NCC Sundry Debtors,Operational Responses,4,202304,01/07/2022,P6,9101916,"-33,678.30 ","33,678.30 ",2204,Contract Cleaning,1027,Carlton,"2,303.82 "
Nottinghamshire Fire and Rescue Service,100557,NCC Sundry Debtors,NCC Sundry Debtors,Operational Responses,4,202304,01/07/2022,P6,9101916,"-33,678.30 ","33,678.30 ",2204,Contract Cleaning,1028,East Leake,198.74 
Nottinghamshire Fire and Rescue Service,100557,NCC Sundry Debtors,NCC Sundry Debtors,Operational Responses,4,202304,01/07/2022,P6,9101916,"-33,678.30 ","33,678.30 ",2204,Contract Cleaning,1029,Highfields Station,"4,319.04 "
Nottinghamshire Fire and Rescue Service,100557,NCC Sundry Debtors,NCC Sundry Debtors,Management & Support Services,4,202304,01/07/2022,P6,9101916,"-33,678.30 ","33,678.30 ",2204,Contract Cleaning,1030,Service Development Centre,"1,789.81 "
Nottinghamshire Fire and Rescue Service,100557,NCC Sundry Debtors,NCC Sundry Debtors,Operational Responses,4,202304,01/06/2022,P6,9101939,-571.61 ,571.61 ,2204,Contract Cleaning,1001,Mansfield,15.42 
Nottinghamshire Fire and Rescue Service,100557,NCC Sundry Debtors,NCC Sundry Debtors,Operational Responses,4,202304,01/06/2022,P6,9101939,-571.61 ,571.61 ,2204,Contract Cleaning,1002,Blidworth,11.57 
Nottinghamshire Fire and Rescue Service,100557,NCC Sundry Debtors,NCC Sundry Debtors,Operational Responses,4,202304,01/06/2022,P6,9101939,-571.61 ,571.61 ,2204,Contract Cleaning,1003,London Road,14.46 
Nottinghamshire Fire and Rescue Service,100557,NCC Sundry Debtors,NCC Sundry Debtors,Operational Responses,4,202304,01/06/2022,P6,9101939,-571.61 ,571.61 ,2204,Contract Cleaning,1005,Ashfield,15.42 
Nottinghamshire Fire and Rescue Service,100557,NCC Sundry Debtors,NCC Sundry Debtors,Operational Responses,4,202304,01/06/2022,P6,9101939,-571.61 ,571.61 ,2204,Contract Cleaning,1006,Edwinstowe,11.57 
Nottinghamshire Fire and Rescue Service,100557,NCC Sundry Debtors,NCC Sundry Debtors,Operational Responses,4,202304,01/06/2022,P6,9101939,-571.61 ,571.61 ,2204,Contract Cleaning,1007,Warsop,11.57 
Nottinghamshire Fire and Rescue Service,100557,NCC Sundry Debtors,NCC Sundry Debtors,Operational Responses,4,202304,01/06/2022,P6,9101939,-571.61 ,571.61 ,2204,Contract Cleaning,1008,Worksop,15.42 
Nottinghamshire Fire and Rescue Service,100557,NCC Sundry Debtors,NCC Sundry Debtors,Operational Responses,4,202304,01/06/2022,P6,9101939,-571.61 ,571.61 ,2204,Contract Cleaning,1010,Harworth,11.57 
Nottinghamshire Fire and Rescue Service,100557,NCC Sundry Debtors,NCC Sundry Debtors,Operational Responses,4,202304,01/06/2022,P6,9101939,-571.61 ,571.61 ,2204,Contract Cleaning,1011,Misterton,11.57 
Nottinghamshire Fire and Rescue Service,100557,NCC Sundry Debtors,NCC Sundry Debtors,Operational Responses,4,202304,01/06/2022,P6,9101939,-571.61 ,571.61 ,2204,Contract Cleaning,1012,Retford,11.57 
Nottinghamshire Fire and Rescue Service,100557,NCC Sundry Debtors,NCC Sundry Debtors,Operational Responses,4,202304,01/06/2022,P6,9101939,-571.61 ,571.61 ,2204,Contract Cleaning,1013,Tuxford,11.57 
Nottinghamshire Fire and Rescue Service,100557,NCC Sundry Debtors,NCC Sundry Debtors,Operational Responses,4,202304,01/06/2022,P6,9101939,-571.61 ,571.61 ,2204,Contract Cleaning,1014,Southwell,11.57 
Nottinghamshire Fire and Rescue Service,100557,NCC Sundry Debtors,NCC Sundry Debtors,Operational Responses,4,202304,01/06/2022,P6,9101939,-571.61 ,571.61 ,2204,Contract Cleaning,1015,Collingham,11.57 
Nottinghamshire Fire and Rescue Service,100557,NCC Sundry Debtors,NCC Sundry Debtors,Operational Responses,4,202304,01/06/2022,P6,9101939,-571.61 ,571.61 ,2204,Contract Cleaning,1016,Newark,15.42 
Nottinghamshire Fire and Rescue Service,100557,NCC Sundry Debtors,NCC Sundry Debtors,Operational Responses,4,202304,01/06/2022,P6,9101939,-571.61 ,571.61 ,2204,Contract Cleaning,1017,Bingham,11.57 
Nottinghamshire Fire and Rescue Service,100557,NCC Sundry Debtors,NCC Sundry Debtors,Operational Responses,4,202304,01/06/2022,P6,9101939,-571.61 ,571.61 ,2204,Contract Cleaning,1019,West Bridgford,15.42 
Nottinghamshire Fire and Rescue Service,100557,NCC Sundry Debtors,NCC Sundry Debtors,Operational Responses,4,202304,01/06/2022,P6,9101939,-571.61 ,571.61 ,2204,Contract Cleaning,1020,Stockhill,15.42 
Nottinghamshire Fire and Rescue Service,100557,NCC Sundry Debtors,NCC Sundry Debtors,Operational Responses,4,202304,01/06/2022,P6,9101939,-571.61 ,571.61 ,2204,Contract Cleaning,1023,Stapleford,11.57 
Nottinghamshire Fire and Rescue Service,100557,NCC Sundry Debtors,NCC Sundry Debtors,Operational Responses,4,202304,01/06/2022,P6,9101939,-571.61 ,571.61 ,2204,Contract Cleaning,1024,Eastwood,11.57 
Nottinghamshire Fire and Rescue Service,100557,NCC Sundry Debtors,NCC Sundry Debtors,Operational Responses,4,202304,01/06/2022,P6,9101939,-571.61 ,571.61 ,2204,Contract Cleaning,1026,Arnold,15.42 
Nottinghamshire Fire and Rescue Service,100557,NCC Sundry Debtors,NCC Sundry Debtors,Operational Responses,4,202304,01/06/2022,P6,9101939,-571.61 ,571.61 ,2204,Contract Cleaning,1027,Carlton,15.42 
Nottinghamshire Fire and Rescue Service,100557,NCC Sundry Debtors,NCC Sundry Debtors,Operational Responses,4,202304,01/06/2022,P6,9101939,-571.61 ,571.61 ,2204,Contract Cleaning,1028,East Leake,11.57 
Nottinghamshire Fire and Rescue Service,100557,NCC Sundry Debtors,NCC Sundry Debtors,Operational Responses,4,202304,01/06/2022,P6,9101939,-571.61 ,571.61 ,2204,Contract Cleaning,1029,Highfields Station,15.42 
Nottinghamshire Fire and Rescue Service,100557,NCC Sundry Debtors,NCC Sundry Debtors,Management & Support Services,4,202304,01/06/2022,P6,9101939,-571.61 ,571.61 ,2204,Contract Cleaning,1030,Service Development Centre,34.69 
Nottinghamshire Fire and Rescue Service,100557,NCC Sundry Debtors,NCC Sundry Debtors,Management & Support Services,4,202304,01/06/2022,P6,9101939,-571.61 ,571.61 ,2204,Contract Cleaning,1035,Headquarters,138.00 
Nottinghamshire Fire and Rescue Service,103337,Falcon Environmental Limited,Falcon Environmental Limited,Management & Support Services,5,202304,30/06/2022,P6,9101944,-504.00 ,504.00 ,2204,Contract Cleaning,2086,Procurement,420.00 
Nottinghamshire Fire and Rescue Service,100557,NCC Sundry Debtors,NCC Sundry Debtors,Operational Responses,4,202304,01/07/2022,P6,9101947,-406.01 ,406.01 ,2204,Contract Cleaning,1001,Mansfield,15.42 
Nottinghamshire Fire and Rescue Service,100557,NCC Sundry Debtors,NCC Sundry Debtors,Operational Responses,4,202304,01/07/2022,P6,9101947,-406.01 ,406.01 ,2204,Contract Cleaning,1002,Blidworth,11.57 
Nottinghamshire Fire and Rescue Service,100557,NCC Sundry Debtors,NCC Sundry Debtors,Operational Responses,4,202304,01/07/2022,P6,9101947,-406.01 ,406.01 ,2204,Contract Cleaning,1003,London Road,14.46 
Nottinghamshire Fire and Rescue Service,100557,NCC Sundry Debtors,NCC Sundry Debtors,Operational Responses,4,202304,01/07/2022,P6,9101947,-406.01 ,406.01 ,2204,Contract Cleaning,1005,Ashfield,15.42 
Nottinghamshire Fire and Rescue Service,100557,NCC Sundry Debtors,NCC Sundry Debtors,Operational Responses,4,202304,01/07/2022,P6,9101947,-406.01 ,406.01 ,2204,Contract Cleaning,1006,Edwinstowe,11.57 
Nottinghamshire Fire and Rescue Service,100557,NCC Sundry Debtors,NCC Sundry Debtors,Operational Responses,4,202304,01/07/2022,P6,9101947,-406.01 ,406.01 ,2204,Contract Cleaning,1007,Warsop,11.57 
Nottinghamshire Fire and Rescue Service,100557,NCC Sundry Debtors,NCC Sundry Debtors,Operational Responses,4,202304,01/07/2022,P6,9101947,-406.01 ,406.01 ,2204,Contract Cleaning,1008,Worksop,15.42 
Nottinghamshire Fire and Rescue Service,100557,NCC Sundry Debtors,NCC Sundry Debtors,Operational Responses,4,202304,01/07/2022,P6,9101947,-406.01 ,406.01 ,2204,Contract Cleaning,1010,Harworth,11.57 
Nottinghamshire Fire and Rescue Service,100557,NCC Sundry Debtors,NCC Sundry Debtors,Operational Responses,4,202304,01/07/2022,P6,9101947,-406.01 ,406.01 ,2204,Contract Cleaning,1011,Misterton,11.57 
Nottinghamshire Fire and Rescue Service,100557,NCC Sundry Debtors,NCC Sundry Debtors,Operational Responses,4,202304,01/07/2022,P6,9101947,-406.01 ,406.01 ,2204,Contract Cleaning,1012,Retford,11.57 
Nottinghamshire Fire and Rescue Service,100557,NCC Sundry Debtors,NCC Sundry Debtors,Operational Responses,4,202304,01/07/2022,P6,9101947,-406.01 ,406.01 ,2204,Contract Cleaning,1013,Tuxford,11.57 
Nottinghamshire Fire and Rescue Service,100557,NCC Sundry Debtors,NCC Sundry Debtors,Operational Responses,4,202304,01/07/2022,P6,9101947,-406.01 ,406.01 ,2204,Contract Cleaning,1014,Southwell,11.57 
Nottinghamshire Fire and Rescue Service,100557,NCC Sundry Debtors,NCC Sundry Debtors,Operational Responses,4,202304,01/07/2022,P6,9101947,-406.01 ,406.01 ,2204,Contract Cleaning,1015,Collingham,11.57 
Nottinghamshire Fire and Rescue Service,100557,NCC Sundry Debtors,NCC Sundry Debtors,Operational Responses,4,202304,01/07/2022,P6,9101947,-406.01 ,406.01 ,2204,Contract Cleaning,1016,Newark,15.42 
Nottinghamshire Fire and Rescue Service,100557,NCC Sundry Debtors,NCC Sundry Debtors,Operational Responses,4,202304,01/07/2022,P6,9101947,-406.01 ,406.01 ,2204,Contract Cleaning,1017,Bingham,11.57 
Nottinghamshire Fire and Rescue Service,100557,NCC Sundry Debtors,NCC Sundry Debtors,Operational Responses,4,202304,01/07/2022,P6,9101947,-406.01 ,406.01 ,2204,Contract Cleaning,1019,West Bridgford,15.42 
Nottinghamshire Fire and Rescue Service,100557,NCC Sundry Debtors,NCC Sundry Debtors,Operational Responses,4,202304,01/07/2022,P6,9101947,-406.01 ,406.01 ,2204,Contract Cleaning,1020,Stockhill,15.42 
Nottinghamshire Fire and Rescue Service,100557,NCC Sundry Debtors,NCC Sundry Debtors,Operational Responses,4,202304,01/07/2022,P6,9101947,-406.01 ,406.01 ,2204,Contract Cleaning,1023,Stapleford,11.57 
Nottinghamshire Fire and Rescue Service,100557,NCC Sundry Debtors,NCC Sundry Debtors,Operational Responses,4,202304,01/07/2022,P6,9101947,-406.01 ,406.01 ,2204,Contract Cleaning,1024,Eastwood,11.57 
Nottinghamshire Fire and Rescue Service,100557,NCC Sundry Debtors,NCC Sundry Debtors,Operational Responses,4,202304,01/07/2022,P6,9101947,-406.01 ,406.01 ,2204,Contract Cleaning,1026,Arnold,15.42 
Nottinghamshire Fire and Rescue Service,100557,NCC Sundry Debtors,NCC Sundry Debtors,Operational Responses,4,202304,01/07/2022,P6,9101947,-406.01 ,406.01 ,2204,Contract Cleaning,1027,Carlton,15.42 
Nottinghamshire Fire and Rescue Service,100557,NCC Sundry Debtors,NCC Sundry Debtors,Operational Responses,4,202304,01/07/2022,P6,9101947,-406.01 ,406.01 ,2204,Contract Cleaning,1028,East Leake,11.57 
Nottinghamshire Fire and Rescue Service,100557,NCC Sundry Debtors,NCC Sundry Debtors,Operational Responses,4,202304,01/07/2022,P6,9101947,-406.01 ,406.01 ,2204,Contract Cleaning,1029,Highfields Station,15.42 
Nottinghamshire Fire and Rescue Service,100557,NCC Sundry Debtors,NCC Sundry Debtors,Management & Support Services,4,202304,01/07/2022,P6,9101947,-406.01 ,406.01 ,2204,Contract Cleaning,1030,Service Development Centre,34.69 
Nottinghamshire Fire and Rescue Service,100557,NCC Sundry Debtors,NCC Sundry Debtors,Operational Responses,4,202304,01/07/2022,P6,9101942,-409.48 ,409.48 ,2205,Window Cleaning,1001,Mansfield,19.27 
Nottinghamshire Fire and Rescue Service,100557,NCC Sundry Debtors,NCC Sundry Debtors,Operational Responses,4,202304,01/07/2022,P6,9101942,-409.48 ,409.48 ,2205,Window Cleaning,1002,Blidworth,11.57 
Nottinghamshire Fire and Rescue Service,100557,NCC Sundry Debtors,NCC Sundry Debtors,Operational Responses,4,202304,01/07/2022,P6,9101942,-409.48 ,409.48 ,2205,Window Cleaning,1003,London Road,23.13 
Nottinghamshire Fire and Rescue Service,100557,NCC Sundry Debtors,NCC Sundry Debtors,Operational Responses,4,202304,01/07/2022,P6,9101942,-409.48 ,409.48 ,2205,Window Cleaning,1005,Ashfield,11.57 
Nottinghamshire Fire and Rescue Service,100557,NCC Sundry Debtors,NCC Sundry Debtors,Operational Responses,4,202304,01/07/2022,P6,9101942,-409.48 ,409.48 ,2205,Window Cleaning,1006,Edwinstowe,17.35 
Nottinghamshire Fire and Rescue Service,100557,NCC Sundry Debtors,NCC Sundry Debtors,Operational Responses,4,202304,01/07/2022,P6,9101942,-409.48 ,409.48 ,2205,Window Cleaning,1007,Warsop,9.64 
Nottinghamshire Fire and Rescue Service,100557,NCC Sundry Debtors,NCC Sundry Debtors,Operational Responses,4,202304,01/07/2022,P6,9101942,-409.48 ,409.48 ,2205,Window Cleaning,1008,Worksop,11.57 
Nottinghamshire Fire and Rescue Service,100557,NCC Sundry Debtors,NCC Sundry Debtors,Operational Responses,4,202304,01/07/2022,P6,9101942,-409.48 ,409.48 ,2205,Window Cleaning,1010,Harworth,11.57 
Nottinghamshire Fire and Rescue Service,100557,NCC Sundry Debtors,NCC Sundry Debtors,Operational Responses,4,202304,01/07/2022,P6,9101942,-409.48 ,409.48 ,2205,Window Cleaning,1011,Misterton,11.57 
Nottinghamshire Fire and Rescue Service,100557,NCC Sundry Debtors,NCC Sundry Debtors,Operational Responses,4,202304,01/07/2022,P6,9101942,-409.48 ,409.48 ,2205,Window Cleaning,1012,Retford,15.42 
Nottinghamshire Fire and Rescue Service,100557,NCC Sundry Debtors,NCC Sundry Debtors,Operational Responses,4,202304,01/07/2022,P6,9101942,-409.48 ,409.48 ,2205,Window Cleaning,1013,Tuxford,9.64 
Nottinghamshire Fire and Rescue Service,100557,NCC Sundry Debtors,NCC Sundry Debtors,Operational Responses,4,202304,01/07/2022,P6,9101942,-409.48 ,409.48 ,2205,Window Cleaning,1014,Southwell,9.64 
Nottinghamshire Fire and Rescue Service,100557,NCC Sundry Debtors,NCC Sundry Debtors,Operational Responses,4,202304,01/07/2022,P6,9101942,-409.48 ,409.48 ,2205,Window Cleaning,1015,Collingham,11.57 
Nottinghamshire Fire and Rescue Service,100557,NCC Sundry Debtors,NCC Sundry Debtors,Operational Responses,4,202304,01/07/2022,P6,9101942,-409.48 ,409.48 ,2205,Window Cleaning,1016,Newark,11.57 
Nottinghamshire Fire and Rescue Service,100557,NCC Sundry Debtors,NCC Sundry Debtors,Operational Responses,4,202304,01/07/2022,P6,9101942,-409.48 ,409.48 ,2205,Window Cleaning,1017,Bingham,11.57 
Nottinghamshire Fire and Rescue Service,100557,NCC Sundry Debtors,NCC Sundry Debtors,Operational Responses,4,202304,01/07/2022,P6,9101942,-409.48 ,409.48 ,2205,Window Cleaning,1019,West Bridgford,13.49 
Nottinghamshire Fire and Rescue Service,100557,NCC Sundry Debtors,NCC Sundry Debtors,Operational Responses,4,202304,01/07/2022,P6,9101942,-409.48 ,409.48 ,2205,Window Cleaning,1020,Stockhill,17.35 
Nottinghamshire Fire and Rescue Service,100557,NCC Sundry Debtors,NCC Sundry Debtors,Operational Responses,4,202304,01/07/2022,P6,9101942,-409.48 ,409.48 ,2205,Window Cleaning,1023,Stapleford,11.57 
Nottinghamshire Fire and Rescue Service,100557,NCC Sundry Debtors,NCC Sundry Debtors,Operational Responses,4,202304,01/07/2022,P6,9101942,-409.48 ,409.48 ,2205,Window Cleaning,1024,Eastwood,11.57 
Nottinghamshire Fire and Rescue Service,100557,NCC Sundry Debtors,NCC Sundry Debtors,Operational Responses,4,202304,01/07/2022,P6,9101942,-409.48 ,409.48 ,2205,Window Cleaning,1026,Arnold,11.57 
Nottinghamshire Fire and Rescue Service,100557,NCC Sundry Debtors,NCC Sundry Debtors,Operational Responses,4,202304,01/07/2022,P6,9101942,-409.48 ,409.48 ,2205,Window Cleaning,1027,Carlton,15.42 
Nottinghamshire Fire and Rescue Service,100557,NCC Sundry Debtors,NCC Sundry Debtors,Operational Responses,4,202304,01/07/2022,P6,9101942,-409.48 ,409.48 ,2205,Window Cleaning,1028,East Leake,11.57 
Nottinghamshire Fire and Rescue Service,100557,NCC Sundry Debtors,NCC Sundry Debtors,Operational Responses,4,202304,01/07/2022,P6,9101942,-409.48 ,409.48 ,2205,Window Cleaning,1029,Highfields Station,38.55 
Nottinghamshire Fire and Rescue Service,100557,NCC Sundry Debtors,NCC Sundry Debtors,Management & Support Services,4,202304,01/07/2022,P6,9101942,-409.48 ,409.48 ,2205,Window Cleaning,1030,Service Development Centre,13.49 
Nottinghamshire Fire and Rescue Service,100856,Arthur J Gallagher,Arthur J Gallagher,Management & Support Services,1,202304,24/06/2022,P6,9101855,-714.17 ,714.17 ,2890,Insurance - Premises,2063,Risk Management & Insurance,714.17 
Nottinghamshire Fire and Rescue Service,102207,Scania (Great Britain) Ltd,Scania (Great Britain) Ltd,Management & Support Services,1,202304,05/07/2022,P6,9101915,"-1,968.36 ","1,968.36 ",3000,Vehicle Purchase,2084,Engineering,"1,640.30 "
Nottinghamshire Fire and Rescue Service,103449,CMT Flexibles Limited,CMT Flexibles Limited,Management & Support Services,5,202304,22/07/2022,P6,9102105,"-4,951.44 ","4,951.44 ",3002,Purchase of Vehicle Equipment,2084,Engineering,"4,126.20 "
Nottinghamshire Fire and Rescue Service,103820,VIA East Midlands Ltd,VIA East Midlands Ltd,Management & Support Services,5,202304,21/06/2022,P6,9101891,"-10,413.92 ","10,413.92 ",3100,Fleet Maintenance - Planned,2084,Engineering,"8,687.15 "
Nottinghamshire Fire and Rescue Service,103820,VIA East Midlands Ltd,VIA East Midlands Ltd,Management & Support Services,5,202304,29/06/2022,P6,9102083,"-5,395.42 ","5,395.42 ",3100,Fleet Maintenance - Planned,2084,Engineering,"4,496.18 "
Nottinghamshire Fire and Rescue Service,102364,Woodway Engineering Limited,Woodway Engineering Limited,Management & Support Services,1,202304,27/07/2022,P6,9102170,"-4,321.97 ","4,321.97 ",3101,Fleet Modification,2084,Engineering,"3,601.64 "
Nottinghamshire Fire and Rescue Service,102280,Amptron Electrical Services,Amptron Electrical Services,Management & Support Services,1,202304,30/06/2022,P6,9101949,"-1,951.56 ","1,951.56 ",3102,Vehicle Maintenance Outsourced,2084,Engineering,"1,626.30 "
Nottinghamshire Fire and Rescue Service,102280,Amptron Electrical Services,Amptron Electrical Services,Management & Support Services,1,202304,30/06/2022,P6,9101950,-303.58 ,303.58 ,3102,Vehicle Maintenance Outsourced,2084,Engineering,252.98 
Nottinghamshire Fire and Rescue Service,102280,Amptron Electrical Services,Amptron Electrical Services,Management & Support Services,1,202304,30/06/2022,P6,9101951,"-1,225.15 ","1,225.15 ",3102,Vehicle Maintenance Outsourced,2084,Engineering,"1,020.96 "
Nottinghamshire Fire and Rescue Service,102280,Amptron Electrical Services,Amptron Electrical Services,Management & Support Services,1,202304,30/06/2022,P6,9101952,-472.72 ,472.72 ,3102,Vehicle Maintenance Outsourced,2084,Engineering,393.93 
Nottinghamshire Fire and Rescue Service,102280,Amptron Electrical Services,Amptron Electrical Services,Management & Support Services,1,202304,30/06/2022,P6,9101953,"-2,303.72 ","2,303.72 ",3102,Vehicle Maintenance Outsourced,2084,Engineering,"1,919.77 "
Nottinghamshire Fire and Rescue Service,101100,Angloco Limited,Angloco Limited,Management & Support Services,1,202304,30/06/2022,P6,9101962,-758.92 ,758.92 ,3102,Vehicle Maintenance Outsourced,2084,Engineering,632.43 
Nottinghamshire Fire and Rescue Service,102228,Keltruck Limited,Keltruck Limited,Management & Support Services,1,202304,31/05/2022,P6,9102103,"-1,334.11 ","1,334.11 ",3102,Vehicle Maintenance Outsourced,2084,Engineering,"1,111.76 "
Nottinghamshire Fire and Rescue Service,103820,VIA East Midlands Ltd,VIA East Midlands Ltd,Management & Support Services,5,202304,21/06/2022,P6,9101965,"-23,672.40 ","23,672.40 ",3103,Fleet Maintenance - Unplanned,2084,Engineering,"19,727.00 "
Nottinghamshire Fire and Rescue Service,103820,VIA East Midlands Ltd,VIA East Midlands Ltd,Management & Support Services,5,202304,29/06/2022,P6,9102032,"-18,316.02 ","18,316.02 ",3103,Fleet Maintenance - Unplanned,2084,Engineering,"15,263.35 "
Nottinghamshire Fire and Rescue Service,103820,VIA East Midlands Ltd,VIA East Midlands Ltd,Management & Support Services,5,202304,29/06/2022,P6,9102082,-529.68 ,529.68 ,3103,Fleet Maintenance - Unplanned,2084,Engineering,441.40 
Nottinghamshire Fire and Rescue Service,103820,VIA East Midlands Ltd,VIA East Midlands Ltd,Management & Support Services,5,202304,21/06/2022,P6,9101894,"-1,958.42 ","1,958.42 ",3104,Fleet - Accident Repairs,2084,Engineering,"1,632.02 "
Nottinghamshire Fire and Rescue Service,103820,VIA East Midlands Ltd,VIA East Midlands Ltd,Management & Support Services,5,202304,29/06/2022,P6,9102081,-610.40 ,610.40 ,3104,Fleet - Accident Repairs,2084,Engineering,508.67 
Nottinghamshire Fire and Rescue Service,103766,CERTAS,CERTAS,Operational Responses,5,202304,28/06/2022,P6,9101851,"-15,169.92 ","15,169.92 ",3200,Fuel - Vehicle,1005,Ashfield,"12,641.60 "
Nottinghamshire Fire and Rescue Service,103766,CERTAS,CERTAS,Operational Responses,5,202304,28/06/2022,P6,9101852,"-13,279.37 ","13,279.37 ",3200,Fuel - Vehicle,1029,Highfields Station,"11,066.14 "
Nottinghamshire Fire and Rescue Service,103766,CERTAS,CERTAS,Operational Responses,5,202304,15/07/2022,P6,9102132,"-14,349.60 ","14,349.60 ",3200,Fuel - Vehicle,1008,Worksop,"11,958.00 "
Nottinghamshire Fire and Rescue Service,103766,CERTAS,CERTAS,Operational Responses,5,202304,15/07/2022,P6,9102133,"-16,184.88 ","16,184.88 ",3200,Fuel - Vehicle,1020,Stockhill,"13,487.40 "
Nottinghamshire Fire and Rescue Service,103766,CERTAS,CERTAS,Operational Responses,5,202304,14/07/2022,P6,9102134,"-14,748.02 ","14,748.02 ",3200,Fuel - Vehicle,1016,Newark,"12,290.02 "
Nottinghamshire Fire and Rescue Service,100321,Drivercheck Ltd,Drivercheck Ltd,Management & Support Services,1,202304,28/06/2022,P6,9101881,-424.80 ,424.80 ,3203,Motor Tax / Licenses,2084,Engineering,354.00 
Nottinghamshire Fire and Rescue Service,103943,Teletrac Navman (UK) Limited,Teletrac Navman (UK) Limited,Management & Support Services,5,202304,04/07/2022,P6,9102136,"-3,472.56 ","3,472.56 ",3203,Motor Tax / Licenses,2084,Engineering,"2,893.80 "
Nottinghamshire Fire and Rescue Service,100202,Enterprise Rent-A-Car,Enterprise Rent-A-Car,Management & Support Services,1,202304,19/04/2022,P6,9102022,-339.00 ,339.00 ,3400,Hire of Fleet Vehicles,2084,Engineering,339.00 
Nottinghamshire Fire and Rescue Service,100224,Delta Fire,Delta Fire,Management & Support Services,1,202304,21/07/2022,P6,9102028,"-5,960.64 ","5,960.64 ",4004,Fire Hose and Couplings,2084,Engineering,"4,967.20 "
Nottinghamshire Fire and Rescue Service,103449,CMT Flexibles Limited,CMT Flexibles Limited,Management & Support Services,5,202304,22/07/2022,P6,9102106,"-5,026.08 ","5,026.08 ",4004,Fire Hose and Couplings,2084,Engineering,51.00 
Nottinghamshire Fire and Rescue Service,103449,CMT Flexibles Limited,CMT Flexibles Limited,Management & Support Services,5,202304,22/07/2022,P6,9102106,"-5,026.08 ","5,026.08 ",4004,Fire Hose and Couplings,2084,Engineering,"4,137.40 "
Nottinghamshire Fire and Rescue Service,102203,Flogas Britian Limited,Flogas Britian Limited,Management & Support Services,1,202304,15/07/2022,P6,9101943,"-1,173.22 ","1,173.22 ",4006,Oxygen and Other Gases,2084,Engineering,977.68 
Nottinghamshire Fire and Rescue Service,100451,Babcock Critical Services Ltd - MA,Babcock Critical Services Ltd - MA,Management & Support Services,1,202304,18/07/2022,P6,9102069,"-1,993.92 ","1,993.92 ",4007,Equipment Annual Service,2084,Engineering,"1,661.60 "
Nottinghamshire Fire and Rescue Service,101890,Survitec Service & Distribution Ltd,Survitec Service & Distribution Ltd,Management & Support Services,1,202304,13/07/2022,P6,9102138,"-1,542.21 ","1,542.21 ",4007,Equipment Annual Service,2084,Engineering,25.00 
Nottinghamshire Fire and Rescue Service,101890,Survitec Service & Distribution Ltd,Survitec Service & Distribution Ltd,Management & Support Services,1,202304,13/07/2022,P6,9102138,"-1,542.21 ","1,542.21 ",4007,Equipment Annual Service,2084,Engineering,"1,260.18 "
Nottinghamshire Fire and Rescue Service,103443,Terberg DTS UK Limited,Terberg DTS UK Limited,Management & Support Services,5,202304,22/07/2022,P6,9102158,"-1,921.25 ","1,921.25 ",4008,Equipment Reative Maintenance,2084,Engineering,"1,601.04 "
Nottinghamshire Fire and Rescue Service,103443,Terberg DTS UK Limited,Terberg DTS UK Limited,Management & Support Services,5,202304,22/07/2022,P6,9102160,-400.60 ,400.60 ,4008,Equipment Reative Maintenance,2084,Engineering,333.83 
Nottinghamshire Fire and Rescue Service,103443,Terberg DTS UK Limited,Terberg DTS UK Limited,Management & Support Services,5,202304,22/07/2022,P6,9102161,-559.66 ,559.66 ,4008,Equipment Reative Maintenance,2084,Engineering,466.38 
Nottinghamshire Fire and Rescue Service,103443,Terberg DTS UK Limited,Terberg DTS UK Limited,Management & Support Services,5,202304,22/07/2022,P6,9102163,"-1,164.49 ","1,164.49 ",4008,Equipment Reative Maintenance,2084,Engineering,970.41 
Nottinghamshire Fire and Rescue Service,103443,Terberg DTS UK Limited,Terberg DTS UK Limited,Management & Support Services,5,202304,22/07/2022,P6,9102164,"-1,897.70 ","1,897.70 ",4008,Equipment Reative Maintenance,2084,Engineering,"1,581.41 "
Nottinghamshire Fire and Rescue Service,103443,Terberg DTS UK Limited,Terberg DTS UK Limited,Management & Support Services,5,202304,22/07/2022,P6,9102165,"-1,127.86 ","1,127.86 ",4008,Equipment Reative Maintenance,2084,Engineering,939.88 
Nottinghamshire Fire and Rescue Service,104227,WCL (UK) Ltd trading as Everything ICT,WCL (UK) Ltd trading as Everything ICT,Management & Support Services,5,202304,14/07/2022,P6,9102026,"-61,566.27 ","61,566.27 ",4100,Computer Hardware/ Software,2097,ICT Service Operations,"51,305.23 "
Nottinghamshire Fire and Rescue Service,103003,Caretower Limited,Caretower Limited,Management & Support Services,5,202304,30/06/2022,P6,9101896,"-8,644.80 ","8,644.80 ",4101,Computer Software Maintenance Contracts,2097,ICT Service Operations,"7,204.00 "
Nottinghamshire Fire and Rescue Service,103195,Texthelp Limited,Texthelp Limited,Management & Support Services,5,202304,07/07/2022,P6,9101922,"-10,280.40 ","10,280.40 ",4101,Computer Software Maintenance Contracts,2097,ICT Service Operations,"8,567.00 "
Nottinghamshire Fire and Rescue Service,103483,Risual Limited,Risual Limited,Management & Support Services,5,202304,15/07/2022,P6,9102033,"-16,295.61 ","16,295.61 ",4101,Computer Software Maintenance Contracts,2095,ICT Digital Transformation,"13,579.68 "
Nottinghamshire Fire and Rescue Service,103483,Risual Limited,Risual Limited,Management & Support Services,5,202304,15/06/2022,P6,9102109,"-16,214.07 ","16,214.07 ",4101,Computer Software Maintenance Contracts,2095,ICT Digital Transformation,"13,511.71 "
Nottinghamshire Fire and Rescue Service,103373,GTT (Interoute/Easynet),GTT (Interoute/Easynet),Management & Support Services,5,202304,25/07/2022,P6,9102119,"-15,741.62 ","15,741.62 ",4101,Computer Software Maintenance Contracts,2095,ICT Digital Transformation,"13,118.02 "
Nottinghamshire Fire and Rescue Service,103483,Risual Limited,Risual Limited,Management & Support Services,5,202304,26/07/2022,P6,9102139,-270.00 ,270.00 ,4101,Computer Software Maintenance Contracts,2097,ICT Service Operations,225.00 
Nottinghamshire Fire and Rescue Service,102103,Ricoh Uk Ltd,Ricoh Uk Ltd,Management & Support Services,1,202304,07/04/2022,P6,9101909,"-4,922.50 ","4,922.50 ",4105,Photocopier,2097,ICT Service Operations,"4,102.08 "
Nottinghamshire Fire and Rescue Service,102103,Ricoh Uk Ltd,Ricoh Uk Ltd,Management & Support Services,1,202304,07/04/2022,P6,9101910,"-4,202.46 ","4,202.46 ",4105,Photocopier,2097,ICT Service Operations,"3,502.05 "
Nottinghamshire Fire and Rescue Service,102103,Ricoh Uk Ltd,Ricoh Uk Ltd,Management & Support Services,1,202304,15/07/2022,P6,9102175,"-1,867.68 ","1,867.68 ",4105,Photocopier,2097,ICT Service Operations,"1,556.40 "
Nottinghamshire Fire and Rescue Service,102103,Ricoh Uk Ltd,Ricoh Uk Ltd,Management & Support Services,1,202304,08/07/2022,P6,9102176,"-1,143.65 ","1,143.65 ",4105,Photocopier,2097,ICT Service Operations,953.04 
Nottinghamshire Fire and Rescue Service,100289,Home Office,Home Office,Management & Support Services,4,202304,08/07/2022,P6,9102131,"-61,207.61 ","61,207.61 ",4204,FireLink Contract Charges,2097,ICT Service Operations,"51,006.34 "
Nottinghamshire Fire and Rescue Service,100289,Home Office,Home Office,Management & Support Services,4,202304,21/07/2022,P6,9102177,"-61,207.61 ","61,207.61 ",4204,FireLink Contract Charges,2097,ICT Service Operations,"51,006.34 "
Nottinghamshire Fire and Rescue Service,103483,Risual Limited,Risual Limited,Management & Support Services,5,202304,22/07/2022,P6,9102141,"-1,764.83 ","1,764.83 ",4301,Phones - Landline,2097,ICT Service Operations,"1,470.69 "
Nottinghamshire Fire and Rescue Service,101802,EE,EE,Management & Support Services,1,202304,01/07/2022,P6,9101974,"-3,982.51 ","3,982.51 ",4302,Phones - Mobiles,2097,ICT Service Operations,"3,318.76 "
Nottinghamshire Fire and Rescue Service,103887,PageOne Communications Limited - Part Of Capita plc,PageOne Communications Limited - Part Of Capita plc,Management & Support Services,5,202304,05/07/2022,P6,9102034,-976.20 ,976.20 ,4303,Pagers,2097,ICT Service Operations,813.50 
Nottinghamshire Fire and Rescue Service,103887,PageOne Communications Limited - Part Of Capita plc,PageOne Communications Limited - Part Of Capita plc,Management & Support Services,5,202304,22/07/2022,P6,9102108,"-6,742.80 ","6,742.80 ",4303,Pagers,2097,ICT Service Operations,"5,619.00 "
Nottinghamshire Fire and Rescue Service,104189,TNR Coaching Limited,TNR Coaching Limited,Management & Support Services,5,202304,31/05/2022,P6,9101871,-412.80 ,412.80 ,4523,Catering/Food & Beverages,2059,Corporate Training,91.00 
Nottinghamshire Fire and Rescue Service,101929,Selecta UK,Selecta UK,Fire Service Emergency Planning & Civil Defence,1,202304,13/07/2022,P6,9101967,-522.00 ,522.00 ,4524,Drinking Water,2009,Resiliance & Emergency Planning,435.00 
Nottinghamshire Fire and Rescue Service,101929,Selecta UK,Selecta UK,Operational Responses,1,202304,12/07/2022,P6,9101969,-348.00 ,348.00 ,4524,Drinking Water,1016,Newark,290.00 
Nottinghamshire Fire and Rescue Service,101929,Selecta UK,Selecta UK,Operational Responses,1,202304,20/07/2022,P6,9102094,-261.00 ,261.00 ,4524,Drinking Water,1003,London Road,217.50 
Nottinghamshire Fire and Rescue Service,101929,Selecta UK,Selecta UK,Operational Responses,1,202304,20/07/2022,P6,9102114,-361.44 ,361.44 ,4524,Drinking Water,1001,Mansfield,301.20 
Nottinghamshire Fire and Rescue Service,101851,Complete Business Solutions Group Ltd,Complete Business Solutions Group Ltd,Management & Support Services,1,202304,30/06/2022,P6,9101886,-915.84 ,915.84 ,4532,Stationery,2075,Service Support Hub,763.20 
Nottinghamshire Fire and Rescue Service,100468,Specialised Canvas Group,Specialised Canvas Group,Management & Support Services,1,202304,07/07/2022,P6,9101931,-319.27 ,319.27 ,4534,Carriage and Packaging,2086,Procurement,13.44 
Nottinghamshire Fire and Rescue Service,101844,Nottinghamshire Relate,Nottinghamshire Relate,Management & Support Services,1,202304,30/06/2022,P6,9101883,"-1,200.00 ","1,200.00 ",4552,Occupational Health Costs,2061,Occupational Health & Fitness,"1,200.00 "
Nottinghamshire Fire and Rescue Service,104220,Health 2 Employment,Health 2 Employment,Management & Support Services,5,202304,13/06/2022,P6,9101918,-900.00 ,900.00 ,4552,Occupational Health Costs,2061,Occupational Health & Fitness,900.00 
Nottinghamshire Fire and Rescue Service,104220,Health 2 Employment,Health 2 Employment,Management & Support Services,5,202304,27/06/2022,P6,9102104,-450.00 ,450.00 ,4552,Occupational Health Costs,2061,Occupational Health & Fitness,450.00 
Nottinghamshire Fire and Rescue Service,101335,Nottingham Trent University,Nottingham Trent University,Management & Support Services,1,202304,10/02/2022,P6,9101954,"-14,400.00 ","14,400.00 ",4554,Consultancy Fees - Non Estates Related,2068,Prevention,"12,000.00 "
Nottinghamshire Fire and Rescue Service,102547,Firefighter Protection Uk,Firefighter Protection Uk,Management & Support Services,1,202304,28/04/2022,P6,9101870,-405.90 ,405.90 ,4594,Training/ Teaching Equipment,2059,Corporate Training,338.25 
Nottinghamshire Fire and Rescue Service,102073,B D Motor Spares,B D Motor Spares,Operational Responses,1,202304,13/07/2022,P6,9101963,"-1,584.00 ","1,584.00 ",4594,Training/ Teaching Equipment,1007,Warsop,440.00 
Nottinghamshire Fire and Rescue Service,102073,B D Motor Spares,B D Motor Spares,Operational Responses,1,202304,13/07/2022,P6,9101963,"-1,584.00 ","1,584.00 ",4594,Training/ Teaching Equipment,1010,Harworth,440.00 
Nottinghamshire Fire and Rescue Service,102073,B D Motor Spares,B D Motor Spares,Operational Responses,1,202304,13/07/2022,P6,9101963,"-1,584.00 ","1,584.00 ",4594,Training/ Teaching Equipment,1016,Newark,440.00 
Nottinghamshire Fire and Rescue Service,102107,Bits At Micks,Bits At Micks,Operational Responses,1,202304,30/04/2022,P6,9102049,"-1,306.80 ","1,306.80 ",4594,Training/ Teaching Equipment,1017,Bingham,217.80 
Nottinghamshire Fire and Rescue Service,102107,Bits At Micks,Bits At Micks,Operational Responses,1,202304,30/04/2022,P6,9102049,"-1,306.80 ","1,306.80 ",4594,Training/ Teaching Equipment,1020,Stockhill,217.80 
Nottinghamshire Fire and Rescue Service,102107,Bits At Micks,Bits At Micks,Operational Responses,1,202304,30/04/2022,P6,9102049,"-1,306.80 ","1,306.80 ",4594,Training/ Teaching Equipment,1027,Carlton,435.60 
Nottinghamshire Fire and Rescue Service,102107,Bits At Micks,Bits At Micks,Operational Responses,1,202304,30/04/2022,P6,9102049,"-1,306.80 ","1,306.80 ",4594,Training/ Teaching Equipment,1029,Highfields Station,217.80 
Nottinghamshire Fire and Rescue Service,102107,Bits At Micks,Bits At Micks,Operational Responses,1,202304,31/05/2022,P6,9102060,"-2,613.60 ","2,613.60 ",4594,Training/ Teaching Equipment,1019,West Bridgford,435.60 
Nottinghamshire Fire and Rescue Service,102107,Bits At Micks,Bits At Micks,Operational Responses,1,202304,31/05/2022,P6,9102060,"-2,613.60 ","2,613.60 ",4594,Training/ Teaching Equipment,1020,Stockhill,217.80 
Nottinghamshire Fire and Rescue Service,102107,Bits At Micks,Bits At Micks,Operational Responses,1,202304,31/05/2022,P6,9102060,"-2,613.60 ","2,613.60 ",4594,Training/ Teaching Equipment,1023,Stapleford,435.60 
Nottinghamshire Fire and Rescue Service,102107,Bits At Micks,Bits At Micks,Operational Responses,1,202304,31/05/2022,P6,9102060,"-2,613.60 ","2,613.60 ",4594,Training/ Teaching Equipment,1024,Eastwood,217.80 
Nottinghamshire Fire and Rescue Service,102107,Bits At Micks,Bits At Micks,Operational Responses,1,202304,31/05/2022,P6,9102060,"-2,613.60 ","2,613.60 ",4594,Training/ Teaching Equipment,1027,Carlton,435.60 
Nottinghamshire Fire and Rescue Service,102107,Bits At Micks,Bits At Micks,Operational Responses,1,202304,31/05/2022,P6,9102060,"-2,613.60 ","2,613.60 ",4594,Training/ Teaching Equipment,1029,Highfields Station,435.60 
Nottinghamshire Fire and Rescue Service,102107,Bits At Micks,Bits At Micks,Operational Responses,1,202304,30/06/2022,P6,9102061,"-2,352.24 ","2,352.24 ",4594,Training/ Teaching Equipment,1003,London Road,435.60 
Nottinghamshire Fire and Rescue Service,102107,Bits At Micks,Bits At Micks,Operational Responses,1,202304,30/06/2022,P6,9102061,"-2,352.24 ","2,352.24 ",4594,Training/ Teaching Equipment,1006,Edwinstowe,217.80 
Nottinghamshire Fire and Rescue Service,102107,Bits At Micks,Bits At Micks,Operational Responses,1,202304,30/06/2022,P6,9102061,"-2,352.24 ","2,352.24 ",4594,Training/ Teaching Equipment,1020,Stockhill,217.80 
Nottinghamshire Fire and Rescue Service,102107,Bits At Micks,Bits At Micks,Operational Responses,1,202304,30/06/2022,P6,9102061,"-2,352.24 ","2,352.24 ",4594,Training/ Teaching Equipment,1026,Arnold,217.80 
Nottinghamshire Fire and Rescue Service,102107,Bits At Micks,Bits At Micks,Operational Responses,1,202304,30/06/2022,P6,9102061,"-2,352.24 ","2,352.24 ",4594,Training/ Teaching Equipment,1027,Carlton,217.80 
Nottinghamshire Fire and Rescue Service,102107,Bits At Micks,Bits At Micks,Operational Responses,1,202304,30/06/2022,P6,9102061,"-2,352.24 ","2,352.24 ",4594,Training/ Teaching Equipment,1029,Highfields Station,217.80 
Nottinghamshire Fire and Rescue Service,102107,Bits At Micks,Bits At Micks,Management & Support Services,1,202304,30/06/2022,P6,9102061,"-2,352.24 ","2,352.24 ",4600,Community Safety Delivery Consumables,2068,Prevention,217.80 
Nottinghamshire Fire and Rescue Service,103647,The Albert Hall Nottingham Limited,The Albert Hall Nottingham Limited,Management & Support Services,5,202304,14/07/2022,P6,9102031,-500.00 ,500.00 ,4626,Gifts and Donations,2093,Command Suite,500.00 
Nottinghamshire Fire and Rescue Service,599999,Sundry Account Interview Expenses,Redacted Personal Data ,Management & Support Services,2,202304,28/06/2022,P6,9101919,-298.57 ,298.57 ,4893,Insurance - Uninsured Losses/ Excess,2063,Risk Management & Insurance,248.81 
Nottinghamshire Fire and Rescue Service,101788,Link Treasury Services Limited,Link Treasury Services Limited,Management & Support Services,1,202304,25/07/2022,P6,9102137,-582.00 ,582.00 ,7000,Financial Services,2081,Finance,485.00 
Nottinghamshire Fire and Rescue Service,101712,Browne Jacobson LLP,Browne Jacobson LLP,Management & Support Services,1,202304,26/05/2022,P6,9101850,"-1,462.68 ","1,462.68 ",7002,Legal Services,2087,Estates Department (Previously Premises),16.90 
Nottinghamshire Fire and Rescue Service,101712,Browne Jacobson LLP,Browne Jacobson LLP,Management & Support Services,1,202304,26/05/2022,P6,9101850,"-1,462.68 ","1,462.68 ",7002,Legal Services,2087,Estates Department (Previously Premises),192.00 
Nottinghamshire Fire and Rescue Service,101947,Mercer Human Resource Consulting Ltd,Mercer Human Resource Consulting Ltd,Management & Support Services,1,202304,29/06/2022,P6,9101885,"-15,468.00 ","15,468.00 ",7500,Treasury Services,2081,Finance,"12,890.00 "
Nottinghamshire Fire and Rescue Service,599999,Sundry Account Interview Expenses,Redacted Personal Data ,Management & Support Services,2,202304,12/07/2022,P6,9101929,"-1,200.00 ","1,200.00 ",9301,Miscellaneous Fees & Charges,2087,Estates Department (Previously Premises),"1,000.00 "
Nottinghamshire Fire and Rescue Service,102376,Bristol Uniforms Limited,Bristol Uniforms Limited,Management & Support Services,1,202304,29/06/2022,P6,9101862,-622.18 ,622.18 ,B314,Stock,9999,Default,518.48 
Nottinghamshire Fire and Rescue Service,102376,Bristol Uniforms Limited,Bristol Uniforms Limited,Management & Support Services,1,202304,29/06/2022,P6,9101863,"-1,148.18 ","1,148.18 ",B314,Stock,9999,Default,956.82 
Nottinghamshire Fire and Rescue Service,103242,New Balance Athletic Shoes (UK) Limited,New Balance Athletic Shoes (UK) Limited,Management & Support Services,5,202304,29/06/2022,P6,9101864,-380.04 ,380.04 ,B314,Stock,9999,Default,316.70 
Nottinghamshire Fire and Rescue Service,102376,Bristol Uniforms Limited,Bristol Uniforms Limited,Management & Support Services,1,202304,18/03/2022,P6,9101865,"-1,860.46 ","1,860.46 ",B314,Stock,9999,Default,"1,550.38 "
Nottinghamshire Fire and Rescue Service,100357,Eastern Shires Purchasing Organisation,Eastern Shires Purchasing Organisation,Management & Support Services,1,202304,27/06/2022,P6,9101866,-415.80 ,415.80 ,B314,Stock,9999,Default,346.50 
Nottinghamshire Fire and Rescue Service,102376,Bristol Uniforms Limited,Bristol Uniforms Limited,Management & Support Services,1,202304,29/06/2022,P6,9101867,"-1,530.91 ","1,530.91 ",B314,Stock,9999,Default,"1,275.76 "
Nottinghamshire Fire and Rescue Service,100299,FireAngel Safety Technology Limited,FireAngel Safety Technology Limited,Management & Support Services,1,202304,29/06/2022,P6,9101869,"-17,940.00 ","17,940.00 ",B314,Stock,9999,Default,"14,950.00 "
Nottinghamshire Fire and Rescue Service,100035,Respirex International,Respirex International,Management & Support Services,1,202304,27/06/2022,P6,9101872,-291.60 ,291.60 ,B314,Stock,9999,Default,243.00 
Nottinghamshire Fire and Rescue Service,100299,FireAngel Safety Technology Limited,FireAngel Safety Technology Limited,Management & Support Services,1,202304,29/06/2022,P6,9101873,-788.76 ,788.76 ,B314,Stock,9999,Default,657.30 
Nottinghamshire Fire and Rescue Service,102864,William Sugden & sons Limited,William Sugden & sons Limited,Management & Support Services,5,202304,17/06/2022,P6,9101875,-366.00 ,366.00 ,B314,Stock,9999,Default,305.00 
Nottinghamshire Fire and Rescue Service,100299,FireAngel Safety Technology Limited,FireAngel Safety Technology Limited,Management & Support Services,1,202304,29/06/2022,P6,9101877,"-1,138.80 ","1,138.80 ",B314,Stock,9999,Default,949.00 
Nottinghamshire Fire and Rescue Service,102376,Bristol Uniforms Limited,Bristol Uniforms Limited,Management & Support Services,1,202304,28/06/2022,P6,9101884,-765.46 ,765.46 ,B314,Stock,9999,Default,637.88 
Nottinghamshire Fire and Rescue Service,100357,Eastern Shires Purchasing Organisation,Eastern Shires Purchasing Organisation,Management & Support Services,1,202304,04/07/2022,P6,9101898,-307.38 ,307.38 ,B314,Stock,9999,Default,256.15 
Nottinghamshire Fire and Rescue Service,100468,Specialised Canvas Group,Specialised Canvas Group,Management & Support Services,1,202304,07/07/2022,P6,9101931,-319.27 ,319.27 ,B314,Stock,9999,Default,252.62 
Nottinghamshire Fire and Rescue Service,100357,Eastern Shires Purchasing Organisation,Eastern Shires Purchasing Organisation,Management & Support Services,1,202304,11/07/2022,P6,9101948,-444.31 ,444.31 ,B314,Stock,9999,Default,370.26 
Nottinghamshire Fire and Rescue Service,101994,Peli Products (Uk) Ltd,Peli Products (Uk) Ltd,Management & Support Services,1,202304,13/07/2022,P6,9101976,-553.78 ,553.78 ,B314,Stock,9999,Default,461.48 
Nottinghamshire Fire and Rescue Service,100114,Goliath Footwear Ltd,Goliath Footwear Ltd,Management & Support Services,1,202304,13/07/2022,P6,9101977,"-2,496.00 ","2,496.00 ",B314,Stock,9999,Default,"2,080.00 "
Nottinghamshire Fire and Rescue Service,103981,Joseph Gleave and Son Limited -Joseph Gleave and Son (Holdings) Limited,Joseph Gleave and Son Limited -Joseph Gleave and Son (Holdings) Limited,Management & Support Services,5,202304,15/07/2022,P6,9102015,-259.42 ,259.42 ,B314,Stock,9999,Default,216.18 
Nottinghamshire Fire and Rescue Service,103981,Joseph Gleave and Son Limited -Joseph Gleave and Son (Holdings) Limited,Joseph Gleave and Son Limited -Joseph Gleave and Son (Holdings) Limited,Management & Support Services,5,202304,15/07/2022,P6,9102016,-315.36 ,315.36 ,B314,Stock,9999,Default,262.80 
Nottinghamshire Fire and Rescue Service,103981,Joseph Gleave and Son Limited -Joseph Gleave and Son (Holdings) Limited,Joseph Gleave and Son Limited -Joseph Gleave and Son (Holdings) Limited,Management & Support Services,5,202304,15/07/2022,P6,9102017,-672.13 ,672.13 ,B314,Stock,9999,Default,560.11 
Nottinghamshire Fire and Rescue Service,100357,Eastern Shires Purchasing Organisation,Eastern Shires Purchasing Organisation,Management & Support Services,1,202304,19/07/2022,P6,9102030,-403.04 ,403.04 ,B314,Stock,9999,Default,335.87 
Nottinghamshire Fire and Rescue Service,103933,Abbey Industrial Solutions Limited,Abbey Industrial Solutions Limited,Management & Support Services,5,202304,14/07/2022,P6,9102043,-313.03 ,313.03 ,B314,Stock,9999,Default,260.86 
Nottinghamshire Fire and Rescue Service,102603,Yorkshire Purchasing Organisation,Yorkshire Purchasing Organisation,Management & Support Services,1,202304,18/07/2022,P6,9102046,-260.64 ,260.64 ,B314,Stock,9999,Default,217.20 
Nottinghamshire Fire and Rescue Service,103981,Joseph Gleave and Son Limited -Joseph Gleave and Son (Holdings) Limited,Joseph Gleave and Son Limited -Joseph Gleave and Son (Holdings) Limited,Management & Support Services,5,202304,22/07/2022,P6,9102101,-315.36 ,315.36 ,B314,Stock,9999,Default,262.80 
Nottinghamshire Fire and Rescue Service,102864,William Sugden & sons Limited,William Sugden & sons Limited,Management & Support Services,5,202304,14/07/2022,P6,9102147,-541.20 ,541.20 ,B314,Stock,9999,Default,451.00 
Nottinghamshire Fire and Rescue Service,100357,Eastern Shires Purchasing Organisation,Eastern Shires Purchasing Organisation,Management & Support Services,1,202304,25/07/2022,P6,9102151,-364.41 ,364.41 ,B314,Stock,9999,Default,303.68 
Nottinghamshire Fire and Rescue Service,103126,Lindum Group Limited,Lindum Group Limited,Management & Support Services,5,202304,15/06/2022,P6,9101882,"-196,361.94 ","196,361.94 ",C101,Building Works,4100,Fire Station Improvement & Refurbishments,"163,634.95 "
Nottinghamshire Fire and Rescue Service,102211,Promotional Displays & Signs Company,Promotional Displays & Signs Company,Management & Support Services,1,202304,06/07/2022,P6,9102007,"-3,051.60 ","3,051.60 ",C113,Fixtures and Fittings,4100,Fire Station Improvement & Refurbishments,"2,543.00 "
Nottinghamshire Fire and Rescue Service,104229,YMD Boon Ltd,YMD Boon Ltd,Management & Support Services,5,202304,30/06/2022,P6,9101961,"-2,400.00 ","2,400.00 ",C154,Professional Fees - Design,4101,Non Operational Buildings Improvements & Refurbishments,"2,000.00 "
Nottinghamshire Fire and Rescue Service,101712,Browne Jacobson LLP,Browne Jacobson LLP,Management & Support Services,1,202304,26/05/2022,P6,9101850,"-1,462.68 ","1,462.68 ",C157,Professional Fees - Legal,4102,Strategic New Build Projects,203.00 
Nottinghamshire Fire and Rescue Service,101712,Browne Jacobson LLP,Browne Jacobson LLP,Management & Support Services,1,202304,26/05/2022,P6,9101850,"-1,462.68 ","1,462.68 ",C157,Professional Fees - Legal,4102,Strategic New Build Projects,248.80 
Nottinghamshire Fire and Rescue Service,101712,Browne Jacobson LLP,Browne Jacobson LLP,Management & Support Services,1,202304,26/05/2022,P6,9101850,"-1,462.68 ","1,462.68 ",C157,Professional Fees - Legal,4102,Strategic New Build Projects,541.30 
Nottinghamshire Fire and Rescue Service,103483,Risual Limited,Risual Limited,Management & Support Services,5,202304,30/06/2022,P6,9101890,"-9,180.00 ","9,180.00 ",C202,Consultancy and Services,4300,ICT Capital Programme,"7,650.00 "
Nottinghamshire Fire and Rescue Service,102072,Civica Uk Limited,Civica Uk Limited,Management & Support Services,1,202304,12/07/2022,P6,9102107,"-3,110.40 ","3,110.40 ",C202,Consultancy and Services,4300,ICT Capital Programme,"2,592.00 "
Nottinghamshire Fire and Rescue Service,103958,Lithium3 Technology Recruitment Limited,Lithium3 Technology Recruitment Limited,Management & Support Services,5,202304,30/06/2022,P6,9101889,"-3,840.00 ","3,840.00 ",C204,Cost of Employee Working on Capital Projects,4102,Strategic New Build Projects,"3,200.00 "
Nottinghamshire Fire and Rescue Service,102376,Bristol Uniforms Limited,Bristol Uniforms Limited,Management & Support Services,1,202304,05/04/2022,P6,9101940,"-11,536.56 ","11,536.56 ",C300,Other Equipment - Purchase,4200,Equipment Capital Programme,"9,613.80 "
Nottinghamshire Fire and Rescue Service,102306,Northern Diver (International) Ltd,Northern Diver (International) Ltd,Management & Support Services,1,202304,15/06/2022,P6,9102071,"-110,544.00 ","110,544.00 ",C300,Other Equipment - Purchase,4200,Equipment Capital Programme,"3,760.00 "
Nottinghamshire Fire and Rescue Service,102306,Northern Diver (International) Ltd,Northern Diver (International) Ltd,Management & Support Services,1,202304,15/06/2022,P6,9102071,"-110,544.00 ","110,544.00 ",C300,Other Equipment - Purchase,4200,Equipment Capital Programme,"88,360.00 "
Nottinghamshire Fire and Rescue Service,102306,Northern Diver (International) Ltd,Northern Diver (International) Ltd,Management & Support Services,1,202304,19/07/2022,P6,9102076,"4,512.00 ","-4,512.00 ",C300,Other Equipment - Purchase,4200,Equipment Capital Programme,"-3,760.00 "
,***Note:,,,,,,,,,,,,,,,
,"***The report shows the payment in its original form. This means disaggregating many invoices into individual component payments many of which will be less than £250 in their own right. This explains why you will see many of the amounts showing less than £250. They were, however, paid as part of an invoice of £250 or more.

**** The Invoice date is the date issued on the invoice. This date may fall out of the date range for the report. In most cases this is due to the invoice being received  late.",,,,,,,,,,,,,,,